Workbook

Sheet Instructions
A1: Manufacturer | B1: Fiandre
A2: File as | B2: F
A3: Product Code | B3: D
A4: CCTD Effective Date | B4: 10/1/22 (Updated)
A8: Enter your Company Name
B10: Click on "Index" to set the print area for the price list index
B11: Then you can send it to print
B14: Click on "Suggested Price List" to set the print area for Conestoga Tile's suggested price list.
B15: Then you can send it to print
B18: Enter your discount codes if you want a personal net cost sheet.
B20: Product
B21: Code | C21: Disc. %
B22: =+B3 -> D
B24: Click on "Your Cost" to set the print area for your personal cost report.
B25: Then you can send it to print
A28: Discount: | B28: To help establish your price list, enter the gross profit percent for each type of product.
B29: If you want to use Conestoga Tile's list price, leave them blank.
A31: Round Nickel: | B31: If you always want your price to round to the nearest nickel, enter "YES".
B32: If you enter "NO", it will NOT round to the nearest nickel.
A34: Ending Cents: | B34: If you always want your price to end with a certain cents, enter that cent value.
B35: If you leave it "blank" will NOT round to this cent value.
B37: Group | C37: GP Margin | D37: GP Margin % for | F37: Round Nickel | G37: add/subtract | H37: Ending Cents
B38: 1 | D38: Field Tile | F38: No | G38: 0
B39: 2 | D39: Trim | F39: No | G39: 0
B40: 3 | D40: Decos | F40: No | G40: 0
B41: 4 | D41: Stock - Field Tile | F41: No | G41: 0
B42: 5 | D42: Stock - Trim | F42: No | G42: 0
B43: 6 | D43: Stock - Decos | F43: No | G43: 0
B44: 7 | D44: Import - Field Tile | F44: No | G44: 0
A46: If you want to manually adjust your price list, hit "F5" and go to "Customer_Cost" to manually adjust pricing.
A47: You can enter a value in the column labeled "Adj." to change your price manually.
B49: Click on "Your Price Calculation" to set the print area for your personal cost calculation report.
B50: Then you can send it to print
B53: Click on "Your Price List" to set the print area for your personal price list.
B54: Then you can send it to print
H55: Yes
A57: If you have any questions on how to best use this spreadsheet, please feel free to contact
A58: Jim Vogel at (800) 422-6860, ext. 4201 or via e-mail at jimvogel@cctd.com

Sheet Index
F3: ="File '"&Instructions!B2&"' - "&Instructions!B1 -> File 'F' - Fiandre
A6: ="Price List Index - "&Instructions!B4 -> Price List Index - 10/1/22 (Updated)
A11: Page | C11: Series | E11: Product Type | G11: Page | I11: Series | K11: Product Type
A12: 1 | C12: Core Shade | E12: Glazed Porcelain
A13: 1 | C13: Fahrenheit | E13: Glazed Porcelain
A14: 1 | C14: French Clay | E14: Glazed Porcelain Floor
A15: 1 | C15: French Clay (Discontinued 1/17/23) | E15: Glazed Ceramic Wall
A16: 1 | C16: LOL | E16: Glazed Ceramic Wall
A17: 2 | C17: Marble Lab | E17: Glazed Porcelain
A18: 2-6 | C18: Maximum | E18: Large Panel Porcelain
A19: 6 | C19: May | E19: Glazed Ceramic Wall
A20: 6 | C20: Royal Marble | E20: Glazed Porcelain
A21: 6 | C21: Shellstone | E21: Glazed Porcelain
A22: 7 | C22: Shen | E22: Glazed Porcelain
A23: 7 | C23: Unicolor (Discontinued 1/17/23) | E23: Glazed Porcelain
A48: This price list is available electronically on an Excel spreadsheet at www.conestogatile.com/pricelists.
A50: The spreadsheet has many special features to assist you. Apply your discount to generate your net costs for your purchasing department. Apply your standard gross margin percentage or custom prices to generate your own custom price list for your showroom. Print out individual price list for each series that can be attached to the back of your sample boards for easy reference.

Sheet Price List
B1: Field Tile | E1: Size | G1: Field | P1: SF/CTN | S1: =IF(Suggested="Yes",AB1,AH1) -> 0.05 | T1: SF | U1: =+Instructions!$B$3 -> D | X1: =+Instructions!$C$22 -> 0 | Y1: =ROUND($AB1*(1-X1)+0.004999,2) -> 0.05 | AA1: new | AB1: 0.05 | AC1: =+X1 -> 0 | AD1: 0.05 | AE1: =(AH1-AD1)/AH1 -> 0 | AG1: 1 | AH1: =SUM(AK1:AM1)+AF1 -> 0.05 | AK1: =ROUND(AD1/(1-VLOOKUP(AG1,Group,2,FALSE)),2) -> 0.05 | AL1: =IF(VLOOKUP(AG1,Group,5,FALSE)="YES",VLOOKUP(ROUND(ROUND(AK1,1)-AK1,2),Round,2,FALSE)+VLOOKUP(AG1,Group,6,FALSE),0) -> 0 | AM1: =IF(VLOOKUP(AG1,Group,7,FALSE)="",0,ROUND(AK1-0.04999,1)-AK1+AN1) -> 0 | AN1: =IF(VLOOKUP(AG1,Group,7,FALSE)="","",VLOOKUP(AG1,Group,7,FALSE)) ->  | AP1: X
B2: Trim | E2: Size | G2: Shape | I2: Description | S2: 0.05 | T2: EA | U2: =+Instructions!$B$3 -> D | X2: =+Instructions!$C$22 -> 0 | Y2: 0.05 | AA2: new | AB2: 0.05 | AC2: 0 | AD2: 0.05 | AE2: 0 | AG2: 2 | AH2: 0.05 | AK2: 0.05 | AL2: 0 | AM2: 0 | AP2: X
B3: Decos | E3: Size | G3: Shape | I3: Description | S3: 0.05 | T3: EA | U3: =+Instructions!$B$3 -> D | X3: =+Instructions!$C$22 -> 0 | Y3: 0.05 | AA3: new | AB3: 0.05 | AC3: 0 | AD3: 0.05 | AE3: 0 | AG3: 3 | AH3: 0.05 | AK3: 0.05 | AL3: 0 | AM3: 0 | AP3: X
B4: Stock - Field Tile | E4: Size | G4: Shape | I4: Description | P4: SF/CTN | S4: 0.05 | T4: SF | U4: =+Instructions!$B$3 -> D | X4: =+Instructions!$C$22 -> 0 | Y4: 0.05 | AA4: new | AB4: 0.05 | AC4: 0 | AD4: 0.05 | AE4: 0 | AG4: 4 | AH4: 0.05 | AK4: 0.05 | AL4: 0 | AM4: 0 | AP4: X
B5: Stock - Trim | E5: Size | G5: Shape | I5: Description | S5: 0.05 | T5: EA | U5: =+Instructions!$B$3 -> D | X5: =+Instructions!$C$22 -> 0 | Y5: 0.05 | AA5: new | AB5: 0.05 | AC5: 0 | AD5: 0.05 | AE5: 0 | AG5: 5 | AH5: 0.05 | AK5: 0.05 | AL5: 0 | AM5: 0 | AP5: X
B6: Stock - Decos | E6: Size | G6: Shape | I6: Description | S6: 0.05 | T6: EA | U6: =+Instructions!$B$3 -> D | X6: =+Instructions!$C$22 -> 0 | Y6: 0.05 | AA6: new | AB6: 0.05 | AC6: 0 | AD6: 0.05 | AE6: 0 | AG6: 6 | AH6: 0.05 | AK6: 0.05 | AL6: 0 | AM6: 0 | AP6: X
B7: Import - Field Tile | E7: Size | G7: Shape | I7: Description | S7: =IF(Suggested="Yes",'Price List'!AB7,'Price List'!AH7) -> 0.05 | T7: SF | U7: =+Instructions!$B$3 -> D | X7: =+Instructions!$C$22 -> 0 | Y7: 0.05 | AA7: new | AB7: 0.05 | AC7: 0 | AD7: 0.05 | AE7: 0 | AG7: 7 | AH7: 0.05 | AK7: 0.05 | AL7: 0 | AM7: 0 | AP7: X
B8: Import - Deco & Trim | E8: Size | G8: Shape | I8: Description | S8: =IF(Suggested="Yes",'Price List'!AB8,'Price List'!AH8) -> 0.05 | T8: EA | U8: =+Instructions!$B$3 -> D | X8: =+Instructions!$C$22 -> 0 | Y8: =ROUND($AB8*(1-X8)+0.004999,2) -> 0.05 | AA8: new | AB8: 0.05 | AC8: =+X8 -> 0 | AD8: =+Y8 -> 0.05 | AE8: =(AH8-AD8)/AH8 -> 0 | AG8: 7 | AH8: =SUM(AK8:AM8)+AF8 -> 0.05 | AK8: =ROUND(AD8/(1-VLOOKUP(AG8,Group,2,FALSE)),2) -> 0.05 | AL8: =IF(VLOOKUP(AG8,Group,5,FALSE)="YES",VLOOKUP(ROUND(ROUND(AK8,1)-AK8,2),Round,2,FALSE)+VLOOKUP(AG8,Group,6,FALSE),0) -> 0 | AM8: =IF(VLOOKUP(AG8,Group,7,FALSE)="",0,ROUND(AK8-0.04999,1)-AK8+AN8) -> 0 | AN8: =IF(VLOOKUP(AG8,Group,7,FALSE)="","",VLOOKUP(AG8,Group,7,FALSE)) ->  | AP8: X
B9: Format | Q9: Stock | R9: a | S9: 1000 | T9: ABC | X9: 0.1 | Y9: 1000 | AA9: ABC | AB9: 1000 | AC9: 0.1 | AD9: 1000 | AE9: 0.1 | AF9: 10 | AH9: 1000 | AP9: X
AP10: X
O11: Price List | X11: Cust. Cost | AA11: Customer Cost Calculation | AP11: X
D12: Sizes & Shapes | O12: Full Carton | Q12: Stock | R12: Note | S12: =IF(Suggested="Yes",AB12,AH12) -> List Price | T12: U/M | U12: Code | X12: Disc. | Y12: Net | AA12: Chg | AB12: List Price | AC12: Disc | AD12: Act. Cost | AE12: GP% | AF12: Adj. | AG12: Group | AH12: Price | AK12: Calc Price | AL12: .05 Round | AM12: Cents | AN12: Round to | AP12: X
AP13: X
O14: ="File '"&Instructions!B2&"' - "&Instructions!B1 -> File 'F' - Fiandre | X14: Cost | AH14: Retail Price Calculations | AP14: X
T15: =+Instructions!B4 -> 10/1/22 (Updated) | AF15: =TODAY() -> 2023-01-17 | AP15: X
N16: =IF(Instructions!C8="","",+Instructions!C8) ->  | AP16: X
C17: ="Product Code '"&Instructions!B3&"'" -> Product Code 'D' | AH17: =IF(Instructions!$C$8="","",Instructions!$C$8) ->  | AP17: X
AP18: X
C19: Sizes & Shapes | O19: Full Carton | Q19: Stock | R19: Note | S19: =+S$12 -> List Price | T19: U/M | U19: =+U$12 -> Code | X19: Disc. | Y19: Net | AA19: Chg | AB19: List Price | AC19: =+AC$12 -> Disc | AD19: Act. Cost | AE19: GP% | AF19: Adj. | AG19: =+AG$12 -> Group | AH19: Price | AK19: Calc Price | AL19: .05 Round | AM19: Cents | AN19: Round to | AP19: X
C20: ALL ITEMS MARKED WITH PACKAGING QUANTITY ARE SOLD IN MULTIPLES OF THAT QUANTITY ONLY | AP20: X
AP21: X
C22: CORE SHADE - Glazed Porcelain | R22: Item # Lookup: | S22: FICS | AP22: X
D24: Colors: | E24: Ashy Core | G24: Fawn Core | J24: Sharp Core | AP24: X
E25: Cloudy Core | G25: Plain Core | J25: Snug Core | AP25: X
B27: Stock - Field Tile | E27: 12" x 24" | G27: Field | J27: Honed | P27: 9.69 SF/CTN | R27: a | S27: =IF(Suggested="Yes",AB27,AH27) -> 16.4 | T27: SF | U27: =+Instructions!$B$3 -> D | X27: =+Instructions!$C$22 -> 0 | Y27: =ROUND($AB27*(1-X27)+0.004999,2) -> 16.4 | AB27: 16.4 | AC27: =+X27 -> 0 | AD27: 16.4 | AE27: =(AH27-AD27)/AH27 -> 0 | AG27: 4 | AH27: =SUM(AK27:AM27)+AF27 -> 16.4 | AK27: =ROUND(AD27/(1-VLOOKUP(AG27,Group,2,FALSE)),2) -> 16.4 | AL27: =IF(VLOOKUP(AG27,Group,5,FALSE)="YES",VLOOKUP(ROUND(ROUND(AK27,1)-AK27,2),Round,2,FALSE)+VLOOKUP(AG27,Group,6,FALSE),0) -> 0 | AM27: =IF(VLOOKUP(AG27,Group,7,FALSE)="",0,ROUND(AK27-0.04999,1)-AK27+AN27) -> 0 | AN27: =IF(VLOOKUP(AG27,Group,7,FALSE)="","",VLOOKUP(AG27,Group,7,FALSE)) ->  | AP27: X
B28: Field Tile | E28: 24" x 24" | G28: Field | J28: Honed | P28: 11.63 SF/CTN | R28: b | S28: =IF(Suggested="Yes",AB28,AH28) -> 17.35 | T28: SF | U28: =+Instructions!$B$3 -> D | X28: =+Instructions!$C$22 -> 0 | Y28: =ROUND($AB28*(1-X28)+0.004999,2) -> 17.35 | AB28: 17.35 | AC28: 0 | AD28: 17.35 | AE28: =(AH28-AD28)/AH28 -> 0 | AG28: 1 | AH28: =SUM(AK28:AM28)+AF28 -> 17.35 | AK28: =ROUND(AD28/(1-VLOOKUP(AG28,Group,2,FALSE)),2) -> 17.35 | AL28: =IF(VLOOKUP(AG28,Group,5,FALSE)="YES",VLOOKUP(ROUND(ROUND(AK28,1)-AK28,2),Round,2,FALSE)+VLOOKUP(AG28,Group,6,FALSE),0) -> 0 | AM28: =IF(VLOOKUP(AG28,Group,7,FALSE)="",0,ROUND(AK28-0.04999,1)-AK28+AN28) -> 0 | AN28: =IF(VLOOKUP(AG28,Group,7,FALSE)="","",VLOOKUP(AG28,Group,7,FALSE)) ->  | AP28: X
B29: Field Tile | E29: 24" x 48" | G29: Field | J29: Honed | P29: 15.50 SF/CTN | R29: b | S29: =IF(Suggested="Yes",AB29,AH29) -> 20.3 | T29: SF | U29: =+Instructions!$B$3 -> D | X29: =+Instructions!$C$22 -> 0 | Y29: =ROUND($AB29*(1-X29)+0.004999,2) -> 20.3 | AB29: 20.3 | AC29: 0 | AD29: 20.3 | AE29: =(AH29-AD29)/AH29 -> 0 | AG29: 1 | AH29: =SUM(AK29:AM29)+AF29 -> 20.3 | AK29: =ROUND(AD29/(1-VLOOKUP(AG29,Group,2,FALSE)),2) -> 20.3 | AL29: =IF(VLOOKUP(AG29,Group,5,FALSE)="YES",VLOOKUP(ROUND(ROUND(AK29,1)-AK29,2),Round,2,FALSE)+VLOOKUP(AG29,Group,6,FALSE),0) -> 0 | AM29: =IF(VLOOKUP(AG29,Group,7,FALSE)="",0,ROUND(AK29-0.04999,1)-AK29+AN29) -> 0 | AN29: =IF(VLOOKUP(AG29,Group,7,FALSE)="","",VLOOKUP(AG29,Group,7,FALSE)) ->  | AP29: X
B31: Trim | E31: 4" x 24" | G31: Bullnose | J31: Honed | P31: 6 PCS/CTN | R31: a | S31: =IF(Suggested="Yes",AB31,AH31) -> 38.9 | T31: EA | U31: =+Instructions!$B$3 -> D | X31: =+Instructions!$C$22 -> 0 | Y31: =ROUND($AB31*(1-X31)+0.004999,2) -> 38.9 | AB31: 38.9 | AC31: =+X31 -> 0 | AD31: =+Y31 -> 38.9 | AE31: =(AH31-AD31)/AH31 -> 0 | AG31: 2 | AH31: =SUM(AK31:AM31)+AF31 -> 38.9 | AK31: =ROUND(AD31/(1-VLOOKUP(AG31,Group,2,FALSE)),2) -> 38.9 | AL31: =IF(VLOOKUP(AG31,Group,5,FALSE)="YES",VLOOKUP(ROUND(ROUND(AK31,1)-AK31,2),Round,2,FALSE)+VLOOKUP(AG31,Group,6,FALSE),0) -> 0 | AM31: =IF(VLOOKUP(AG31,Group,7,FALSE)="",0,ROUND(AK31-0.04999,1)-AK31+AN31) -> 0 | AN31: =IF(VLOOKUP(AG31,Group,7,FALSE)="","",VLOOKUP(AG31,Group,7,FALSE)) ->  | AP31: X
B33: Trim | E33: 12" x 24" | G33: Stair Tread | J33: Honed | P33: 5 PCS/CTN | R33: b | S33: =IF(Suggested="Yes",AB33,AH33) -> 133.55 | T33: EA | U33: =+Instructions!$B$3 -> D | X33: =+Instructions!$C$22 -> 0 | Y33: =ROUND($AB33*(1-X33)+0.004999,2) -> 133.55 | AB33: 133.55 | AC33: 0 | AD33: 133.55 | AE33: =(AH33-AD33)/AH33 -> 0 | AG33: 2 | AH33: =SUM(AK33:AM33)+AF33 -> 133.55 | AK33: =ROUND(AD33/(1-VLOOKUP(AG33,Group,2,FALSE)),2) -> 133.55 | AL33: =IF(VLOOKUP(AG33,Group,5,FALSE)="YES",VLOOKUP(ROUND(ROUND(AK33,1)-AK33,2),Round,2,FALSE)+VLOOKUP(AG33,Group,6,FALSE),0) -> 0 | AM33: =IF(VLOOKUP(AG33,Group,7,FALSE)="",0,ROUND(AK33-0.04999,1)-AK33+AN33) -> 0 | AN33: =IF(VLOOKUP(AG33,Group,7,FALSE)="","",VLOOKUP(AG33,Group,7,FALSE)) ->  | AP33: X
B35: Field Tile | E35: 12" x 24" | G35: Field | J35: Slate | P35: 9.69 SF/CTN | R35: b | S35: =IF(Suggested="Yes",AB35,AH35) -> 17.9 | T35: SF | U35: =+Instructions!$B$3 -> D | X35: =+Instructions!$C$22 -> 0 | Y35: =ROUND($AB35*(1-X35)+0.004999,2) -> 17.9 | AB35: 17.9 | AC35: =+X35 -> 0 | AD35: 17.9 | AE35: =(AH35-AD35)/AH35 -> 0 | AG35: 1 | AH35: =SUM(AK35:AM35)+AF35 -> 17.9 | AK35: =ROUND(AD35/(1-VLOOKUP(AG35,Group,2,FALSE)),2) -> 17.9 | AL35: =IF(VLOOKUP(AG35,Group,5,FALSE)="YES",VLOOKUP(ROUND(ROUND(AK35,1)-AK35,2),Round,2,FALSE)+VLOOKUP(AG35,Group,6,FALSE),0) -> 0 | AM35: =IF(VLOOKUP(AG35,Group,7,FALSE)="",0,ROUND(AK35-0.04999,1)-AK35+AN35) -> 0 | AN35: =IF(VLOOKUP(AG35,Group,7,FALSE)="","",VLOOKUP(AG35,Group,7,FALSE)) ->  | AP35: X
B36: Field Tile | E36: 24" x 24" | G36: Field | J36: Slate | P36: 11.63 SF/CTN | R36: b | S36: =IF(Suggested="Yes",AB36,AH36) -> 18.8 | T36: SF | U36: =+Instructions!$B$3 -> D | X36: =+Instructions!$C$22 -> 0 | Y36: =ROUND($AB36*(1-X36)+0.004999,2) -> 18.8 | AB36: 18.8 | AC36: 0 | AD36: 18.8 | AE36: =(AH36-AD36)/AH36 -> 0 | AG36: 1 | AH36: =SUM(AK36:AM36)+AF36 -> 18.8 | AK36: =ROUND(AD36/(1-VLOOKUP(AG36,Group,2,FALSE)),2) -> 18.8 | AL36: =IF(VLOOKUP(AG36,Group,5,FALSE)="YES",VLOOKUP(ROUND(ROUND(AK36,1)-AK36,2),Round,2,FALSE)+VLOOKUP(AG36,Group,6,FALSE),0) -> 0 | AM36: =IF(VLOOKUP(AG36,Group,7,FALSE)="",0,ROUND(AK36-0.04999,1)-AK36+AN36) -> 0 | AN36: =IF(VLOOKUP(AG36,Group,7,FALSE)="","",VLOOKUP(AG36,Group,7,FALSE)) ->  | AP36: X
B37: Field Tile | E37: 24" x 48" | G37: Field | J37: Slate | P37: 15.50 SF/CTN | R37: b | S37: =IF(Suggested="Yes",AB37,AH37) -> 21.7 | T37: SF | U37: =+Instructions!$B$3 -> D | X37: =+Instructions!$C$22 -> 0 | Y37: =ROUND($AB37*(1-X37)+0.004999,2) -> 21.7 | AB37: 21.7 | AC37: 0 | AD37: 21.7 | AE37: =(AH37-AD37)/AH37 -> 0 | AG37: 1 | AH37: =SUM(AK37:AM37)+AF37 -> 21.7 | AK37: =ROUND(AD37/(1-VLOOKUP(AG37,Group,2,FALSE)),2) -> 21.7 | AL37: =IF(VLOOKUP(AG37,Group,5,FALSE)="YES",VLOOKUP(ROUND(ROUND(AK37,1)-AK37,2),Round,2,FALSE)+VLOOKUP(AG37,Group,6,FALSE),0) -> 0 | AM37: =IF(VLOOKUP(AG37,Group,7,FALSE)="",0,ROUND(AK37-0.04999,1)-AK37+AN37) -> 0 | AN37: =IF(VLOOKUP(AG37,Group,7,FALSE)="","",VLOOKUP(AG37,Group,7,FALSE)) ->  | AP37: X
B39: Trim | E39: 4" x 24" | G39: Bullnose | J39: Slate | P39: 6 PCS/CTN | R39: b | S39: =IF(Suggested="Yes",AB39,AH39) -> 40.15 | T39: EA | U39: =+Instructions!$B$3 -> D | X39: =+Instructions!$C$22 -> 0 | Y39: =ROUND($AB39*(1-X39)+0.004999,2) -> 40.15 | AB39: 40.15 | AC39: =+X39 -> 0 | AD39: =+Y39 -> 40.15 | AE39: =(AH39-AD39)/AH39 -> 0 | AG39: 2 | AH39: =SUM(AK39:AM39)+AF39 -> 40.15 | AK39: =ROUND(AD39/(1-VLOOKUP(AG39,Group,2,FALSE)),2) -> 40.15 | AL39: =IF(VLOOKUP(AG39,Group,5,FALSE)="YES",VLOOKUP(ROUND(ROUND(AK39,1)-AK39,2),Round,2,FALSE)+VLOOKUP(AG39,Group,6,FALSE),0) -> 0 | AM39: =IF(VLOOKUP(AG39,Group,7,FALSE)="",0,ROUND(AK39-0.04999,1)-AK39+AN39) -> 0 | AN39: =IF(VLOOKUP(AG39,Group,7,FALSE)="","",VLOOKUP(AG39,Group,7,FALSE)) ->  | AP39: X
B41: Trim | E41: 12" x 24" | G41: Stair Tread | J41: Slate | P41: 5 PCS/CTN | R41: b | S41: =IF(Suggested="Yes",AB41,AH41) -> 137.55 | T41: EA | U41: =+Instructions!$B$3 -> D | X41: =+Instructions!$C$22 -> 0 | Y41: =ROUND($AB41*(1-X41)+0.004999,2) -> 137.55 | AB41: 137.55 | AC41: =+X41 -> 0 | AD41: =+Y41 -> 137.55 | AE41: =(AH41-AD41)/AH41 -> 0 | AG41: 2 | AH41: =SUM(AK41:AM41)+AF41 -> 137.55 | AK41: =ROUND(AD41/(1-VLOOKUP(AG41,Group,2,FALSE)),2) -> 137.55 | AL41: =IF(VLOOKUP(AG41,Group,5,FALSE)="YES",VLOOKUP(ROUND(ROUND(AK41,1)-AK41,2),Round,2,FALSE)+VLOOKUP(AG41,Group,6,FALSE),0) -> 0 | AM41: =IF(VLOOKUP(AG41,Group,7,FALSE)="",0,ROUND(AK41-0.04999,1)-AK41+AN41) -> 0 | AN41: =IF(VLOOKUP(AG41,Group,7,FALSE)="","",VLOOKUP(AG41,Group,7,FALSE)) ->  | AP41: X
D43: Notes: | E43: a) Colors Plain Core, Sharp Core and Snug Core are Special Order Only. Extended Lead Time of approximately 8-10 weeks.
E44: b) Special Order Only. Extended Lead Time of approximately 8-10 weeks.
C46: FAHRENHEIT - Glazed Porcelain | R46: Item # Lookup: | S46: FIFA | AP46: X
D48: Colors: | E48: 0F Cool | G48: 300F Frost | J48: 400F Heat | L48: 500F Heat | AP48: X
E49: 250F Frost | G49: 350F Frost | J49: 450F Heat | AP49: X
B51: Field Tile | E51: 4" x 24" x 8mm | G51: Field | J51: Honed | P51: 7.75 SF/CTN | R51: a | S51: =IF(Suggested="Yes",AB51,AH51) -> 19.3 | T51: SF | U51: =+Instructions!$B$3 -> D | X51: =+Instructions!$C$22 -> 0 | Y51: =ROUND($AB51*(1-X51)+0.004999,2) -> 19.3 | AB51: 19.3 | AC51: =+X51 -> 0 | AD51: 19.3 | AE51: =(AH51-AD51)/AH51 -> 0 | AG51: 1 | AH51: =SUM(AK51:AM51)+AF51 -> 19.3 | AK51: =ROUND(AD51/(1-VLOOKUP(AG51,Group,2,FALSE)),2) -> 19.3 | AL51: =IF(VLOOKUP(AG51,Group,5,FALSE)="YES",VLOOKUP(ROUND(ROUND(AK51,1)-AK51,2),Round,2,FALSE)+VLOOKUP(AG51,Group,6,FALSE),0) -> 0 | AM51: =IF(VLOOKUP(AG51,Group,7,FALSE)="",0,ROUND(AK51-0.04999,1)-AK51+AN51) -> 0 | AN51: =IF(VLOOKUP(AG51,Group,7,FALSE)="","",VLOOKUP(AG51,Group,7,FALSE)) ->  | AP51: X
B52: Field Tile | E52: 6" x 24" x 8mm | G52: Field | J52: Honed | P52: 11.63 SF/CTN | R52: a | S52: =IF(Suggested="Yes",AB52,AH52) -> 18.5 | T52: SF | U52: =+Instructions!$B$3 -> D | X52: =+Instructions!$C$22 -> 0 | Y52: =ROUND($AB52*(1-X52)+0.004999,2) -> 18.5 | AB52: 18.5 | AC52: 0 | AD52: 18.5 | AE52: =(AH52-AD52)/AH52 -> 0 | AG52: 1 | AH52: =SUM(AK52:AM52)+AF52 -> 18.5 | AK52: =ROUND(AD52/(1-VLOOKUP(AG52,Group,2,FALSE)),2) -> 18.5 | AL52: =IF(VLOOKUP(AG52,Group,5,FALSE)="YES",VLOOKUP(ROUND(ROUND(AK52,1)-AK52,2),Round,2,FALSE)+VLOOKUP(AG52,Group,6,FALSE),0) -> 0 | AM52: =IF(VLOOKUP(AG52,Group,7,FALSE)="",0,ROUND(AK52-0.04999,1)-AK52+AN52) -> 0 | AN52: =IF(VLOOKUP(AG52,Group,7,FALSE)="","",VLOOKUP(AG52,Group,7,FALSE)) ->  | AP52: X
B53: Stock - Field Tile | E53: 12" x 24" x 8mm | G53: Field | J53: Honed | P53: 15.50 SF/CTN | S53: =IF(Suggested="Yes",AB53,AH53) -> 14.65 | T53: SF | U53: =+Instructions!$B$3 -> D | X53: =+Instructions!$C$22 -> 0 | Y53: =ROUND($AB53*(1-X53)+0.004999,2) -> 14.65 | AB53: 14.65 | AC53: 0 | AD53: 14.65 | AE53: =(AH53-AD53)/AH53 -> 0 | AG53: 4 | AH53: =SUM(AK53:AM53)+AF53 -> 14.65 | AK53: =ROUND(AD53/(1-VLOOKUP(AG53,Group,2,FALSE)),2) -> 14.65 | AL53: =IF(VLOOKUP(AG53,Group,5,FALSE)="YES",VLOOKUP(ROUND(ROUND(AK53,1)-AK53,2),Round,2,FALSE)+VLOOKUP(AG53,Group,6,FALSE),0) -> 0 | AM53: =IF(VLOOKUP(AG53,Group,7,FALSE)="",0,ROUND(AK53-0.04999,1)-AK53+AN53) -> 0 | AN53: =IF(VLOOKUP(AG53,Group,7,FALSE)="","",VLOOKUP(AG53,Group,7,FALSE)) ->  | AP53: X
B54: Field Tile | E54: 24" x 24" x 8mm | G54: Field | J54: Honed | P54: 15.50 SF/CTN | R54: a | S54: =IF(Suggested="Yes",AB54,AH54) -> 15.5 | T54: SF | U54: =+Instructions!$B$3 -> D | X54: =+Instructions!$C$22 -> 0 | Y54: =ROUND($AB54*(1-X54)+0.004999,2) -> 15.5 | AB54: 15.5 | AC54: 0 | AD54: 15.5 | AE54: =(AH54-AD54)/AH54 -> 0 | AG54: 1 | AH54: =SUM(AK54:AM54)+AF54 -> 15.5 | AK54: =ROUND(AD54/(1-VLOOKUP(AG54,Group,2,FALSE)),2) -> 15.5 | AL54: =IF(VLOOKUP(AG54,Group,5,FALSE)="YES",VLOOKUP(ROUND(ROUND(AK54,1)-AK54,2),Round,2,FALSE)+VLOOKUP(AG54,Group,6,FALSE),0) -> 0 | AM54: =IF(VLOOKUP(AG54,Group,7,FALSE)="",0,ROUND(AK54-0.04999,1)-AK54+AN54) -> 0 | AN54: =IF(VLOOKUP(AG54,Group,7,FALSE)="","",VLOOKUP(AG54,Group,7,FALSE)) ->  | AP54: X
B55: Stock - Field Tile | E55: 24" x 48" x 8mm | G55: Field | J55: Honed | P55: 15.50 SF/CTN | S55: =IF(Suggested="Yes",AB55,AH55) -> 18.85 | T55: SF | U55: =+Instructions!$B$3 -> D | X55: =+Instructions!$C$22 -> 0 | Y55: =ROUND($AB55*(1-X55)+0.004999,2) -> 18.85 | AB55: 18.85 | AC55: 0 | AD55: 18.85 | AE55: =(AH55-AD55)/AH55 -> 0 | AG55: 4 | AH55: =SUM(AK55:AM55)+AF55 -> 18.85 | AK55: =ROUND(AD55/(1-VLOOKUP(AG55,Group,2,FALSE)),2) -> 18.85 | AL55: =IF(VLOOKUP(AG55,Group,5,FALSE)="YES",VLOOKUP(ROUND(ROUND(AK55,1)-AK55,2),Round,2,FALSE)+VLOOKUP(AG55,Group,6,FALSE),0) -> 0 | AM55: =IF(VLOOKUP(AG55,Group,7,FALSE)="",0,ROUND(AK55-0.04999,1)-AK55+AN55) -> 0 | AN55: =IF(VLOOKUP(AG55,Group,7,FALSE)="","",VLOOKUP(AG55,Group,7,FALSE)) ->  | AP55: X
B57: Decos | E57: 12" x 12" x 8mm | G57: Mosaic | I57: 2" x 2" | J57: Honed | P57: 6 PCS/CTN | S57: =IF(Suggested="Yes",AB57,AH57) -> 52.1 | T57: EA | U57: =+Instructions!$B$3 -> D | X57: =+Instructions!$C$22 -> 0 | Y57: =ROUND($AB57*(1-X57)+0.004999,2) -> 52.1 | AB57: 52.1 | AC57: =+X57 -> 0 | AD57: =+Y57 -> 52.1 | AE57: =(AH57-AD57)/AH57 -> 0 | AG57: 3 | AH57: =SUM(AK57:AM57)+AF57 -> 52.1 | AK57: =ROUND(AD57/(1-VLOOKUP(AG57,Group,2,FALSE)),2) -> 52.1 | AL57: =IF(VLOOKUP(AG57,Group,5,FALSE)="YES",VLOOKUP(ROUND(ROUND(AK57,1)-AK57,2),Round,2,FALSE)+VLOOKUP(AG57,Group,6,FALSE),0) -> 0 | AM57: =IF(VLOOKUP(AG57,Group,7,FALSE)="",0,ROUND(AK57-0.04999,1)-AK57+AN57) -> 0 | AN57: =IF(VLOOKUP(AG57,Group,7,FALSE)="","",VLOOKUP(AG57,Group,7,FALSE)) ->  | AP57: X
B59: Trim | E59: 4" x 24" x 8mm | G59: Bullnose | J59: Honed | P59: 14 PCS/CTN | S59: =IF(Suggested="Yes",AB59,AH59) -> 38.65 | T59: EA | U59: =+Instructions!$B$3 -> D | X59: =+Instructions!$C$22 -> 0 | Y59: =ROUND($AB59*(1-X59)+0.004999,2) -> 38.65 | AB59: 38.65 | AC59: =+X59 -> 0 | AD59: =+Y59 -> 38.65 | AE59: =(AH59-AD59)/AH59 -> 0 | AG59: 2 | AH59: =SUM(AK59:AM59)+AF59 -> 38.65 | AK59: =ROUND(AD59/(1-VLOOKUP(AG59,Group,2,FALSE)),2) -> 38.65 | AL59: =IF(VLOOKUP(AG59,Group,5,FALSE)="YES",VLOOKUP(ROUND(ROUND(AK59,1)-AK59,2),Round,2,FALSE)+VLOOKUP(AG59,Group,6,FALSE),0) -> 0 | AM59: =IF(VLOOKUP(AG59,Group,7,FALSE)="",0,ROUND(AK59-0.04999,1)-AK59+AN59) -> 0 | AN59: =IF(VLOOKUP(AG59,Group,7,FALSE)="","",VLOOKUP(AG59,Group,7,FALSE)) ->  | AP59: X
B61: Trim | E61: 12" x 24" x 8mm | G61: Stair Tread | J61: Honed | P61: 8 PCS/CTN | R61: a | S61: =IF(Suggested="Yes",AB61,AH61) -> 132.65 | T61: EA | U61: =+Instructions!$B$3 -> D | X61: =+Instructions!$C$22 -> 0 | Y61: =ROUND($AB61*(1-X61)+0.004999,2) -> 132.65 | AB61: 132.65 | AC61: =+X61 -> 0 | AD61: =+Y61 -> 132.65 | AE61: =(AH61-AD61)/AH61 -> 0 | AG61: 2 | AH61: =SUM(AK61:AM61)+AF61 -> 132.65 | AK61: =ROUND(AD61/(1-VLOOKUP(AG61,Group,2,FALSE)),2) -> 132.65 | AL61: =IF(VLOOKUP(AG61,Group,5,FALSE)="YES",VLOOKUP(ROUND(ROUND(AK61,1)-AK61,2),Round,2,FALSE)+VLOOKUP(AG61,Group,6,FALSE),0) -> 0 | AM61: =IF(VLOOKUP(AG61,Group,7,FALSE)="",0,ROUND(AK61-0.04999,1)-AK61+AN61) -> 0 | AN61: =IF(VLOOKUP(AG61,Group,7,FALSE)="","",VLOOKUP(AG61,Group,7,FALSE)) ->  | AP61: X
B63: Field Tile | E63: 4" x 24" x 8mm | G63: Field | J63: Slate | P63: 7.75 SF/CTN | R63: a | S63: =IF(Suggested="Yes",AB63,AH63) -> 20.4 | T63: SF | U63: =+Instructions!$B$3 -> D | X63: =+Instructions!$C$22 -> 0 | Y63: =ROUND($AB63*(1-X63)+0.004999,2) -> 20.4 | AB63: 20.4 | AC63: =+X63 -> 0 | AD63: 20.4 | AE63: =(AH63-AD63)/AH63 -> 0 | AG63: 1 | AH63: =SUM(AK63:AM63)+AF63 -> 20.4 | AK63: =ROUND(AD63/(1-VLOOKUP(AG63,Group,2,FALSE)),2) -> 20.4 | AL63: =IF(VLOOKUP(AG63,Group,5,FALSE)="YES",VLOOKUP(ROUND(ROUND(AK63,1)-AK63,2),Round,2,FALSE)+VLOOKUP(AG63,Group,6,FALSE),0) -> 0 | AM63: =IF(VLOOKUP(AG63,Group,7,FALSE)="",0,ROUND(AK63-0.04999,1)-AK63+AN63) -> 0 | AN63: =IF(VLOOKUP(AG63,Group,7,FALSE)="","",VLOOKUP(AG63,Group,7,FALSE)) ->  | AP63: X
B64: Field Tile | E64: 6" x 24" x 8mm | G64: Field | J64: Slate | P64: 11.63 SF/CTN | R64: a | S64: =IF(Suggested="Yes",AB64,AH64) -> 19.55 | T64: SF | U64: =+Instructions!$B$3 -> D | X64: =+Instructions!$C$22 -> 0 | Y64: =ROUND($AB64*(1-X64)+0.004999,2) -> 19.55 | AB64: 19.55 | AC64: 0 | AD64: 19.55 | AE64: =(AH64-AD64)/AH64 -> 0 | AG64: 1 | AH64: =SUM(AK64:AM64)+AF64 -> 19.55 | AK64: =ROUND(AD64/(1-VLOOKUP(AG64,Group,2,FALSE)),2) -> 19.55 | AL64: =IF(VLOOKUP(AG64,Group,5,FALSE)="YES",VLOOKUP(ROUND(ROUND(AK64,1)-AK64,2),Round,2,FALSE)+VLOOKUP(AG64,Group,6,FALSE),0) -> 0 | AM64: =IF(VLOOKUP(AG64,Group,7,FALSE)="",0,ROUND(AK64-0.04999,1)-AK64+AN64) -> 0 | AN64: =IF(VLOOKUP(AG64,Group,7,FALSE)="","",VLOOKUP(AG64,Group,7,FALSE)) ->  | AP64: X
B65: Field Tile | E65: 12" x 24" x 8mm | G65: Field | J65: Slate | P65: 15.50 SF/CTN | R65: a | S65: =IF(Suggested="Yes",AB65,AH65) -> 15.5 | T65: SF | U65: =+Instructions!$B$3 -> D | X65: =+Instructions!$C$22 -> 0 | Y65: =ROUND($AB65*(1-X65)+0.004999,2) -> 15.5 | AB65: 15.5 | AC65: 0 | AD65: 15.5 | AE65: =(AH65-AD65)/AH65 -> 0 | AG65: 1 | AH65: =SUM(AK65:AM65)+AF65 -> 15.5 | AK65: =ROUND(AD65/(1-VLOOKUP(AG65,Group,2,FALSE)),2) -> 15.5 | AL65: =IF(VLOOKUP(AG65,Group,5,FALSE)="YES",VLOOKUP(ROUND(ROUND(AK65,1)-AK65,2),Round,2,FALSE)+VLOOKUP(AG65,Group,6,FALSE),0) -> 0 | AM65: =IF(VLOOKUP(AG65,Group,7,FALSE)="",0,ROUND(AK65-0.04999,1)-AK65+AN65) -> 0 | AN65: =IF(VLOOKUP(AG65,Group,7,FALSE)="","",VLOOKUP(AG65,Group,7,FALSE)) ->  | AP65: X
B66: Field Tile | E66: 24" x 24" x 8mm | G66: Field | J66: Slate | P66: 15.50 SF/CTN | R66: a | S66: =IF(Suggested="Yes",AB66,AH66) -> 16.55 | T66: SF | U66: =+Instructions!$B$3 -> D | X66: =+Instructions!$C$22 -> 0 | Y66: =ROUND($AB66*(1-X66)+0.004999,2) -> 16.55 | AB66: 16.55 | AC66: 0 | AD66: 16.55 | AE66: =(AH66-AD66)/AH66 -> 0 | AG66: 1 | AH66: =SUM(AK66:AM66)+AF66 -> 16.55 | AK66: =ROUND(AD66/(1-VLOOKUP(AG66,Group,2,FALSE)),2) -> 16.55 | AL66: =IF(VLOOKUP(AG66,Group,5,FALSE)="YES",VLOOKUP(ROUND(ROUND(AK66,1)-AK66,2),Round,2,FALSE)+VLOOKUP(AG66,Group,6,FALSE),0) -> 0 | AM66: =IF(VLOOKUP(AG66,Group,7,FALSE)="",0,ROUND(AK66-0.04999,1)-AK66+AN66) -> 0 | AN66: =IF(VLOOKUP(AG66,Group,7,FALSE)="","",VLOOKUP(AG66,Group,7,FALSE)) ->  | AP66: X
B67: Field Tile | E67: 24" x 48" x 8mm | G67: Field | J67: Slate | P67: 15.50 SF/CTN | R67: a | S67: =IF(Suggested="Yes",AB67,AH67) -> 19.85 | T67: SF | U67: =+Instructions!$B$3 -> D | X67: =+Instructions!$C$22 -> 0 | Y67: =ROUND($AB67*(1-X67)+0.004999,2) -> 19.85 | AB67: 19.85 | AC67: 0 | AD67: 19.85 | AE67: =(AH67-AD67)/AH67 -> 0 | AG67: 1 | AH67: =SUM(AK67:AM67)+AF67 -> 19.85 | AK67: =ROUND(AD67/(1-VLOOKUP(AG67,Group,2,FALSE)),2) -> 19.85 | AL67: =IF(VLOOKUP(AG67,Group,5,FALSE)="YES",VLOOKUP(ROUND(ROUND(AK67,1)-AK67,2),Round,2,FALSE)+VLOOKUP(AG67,Group,6,FALSE),0) -> 0 | AM67: =IF(VLOOKUP(AG67,Group,7,FALSE)="",0,ROUND(AK67-0.04999,1)-AK67+AN67) -> 0 | AN67: =IF(VLOOKUP(AG67,Group,7,FALSE)="","",VLOOKUP(AG67,Group,7,FALSE)) ->  | AP67: X
B69: Trim | E69: 4" x 24" x 8mm | G69: Bullnose | J69: Slate | P69: 14 PCS/CTN | R69: a | S69: =IF(Suggested="Yes",AB69,AH69) -> 39.85 | T69: EA | U69: =+Instructions!$B$3 -> D | X69: =+Instructions!$C$22 -> 0 | Y69: =ROUND($AB69*(1-X69)+0.004999,2) -> 39.85 | AB69: 39.85 | AC69: =+X69 -> 0 | AD69: =+Y69 -> 39.85 | AE69: =(AH69-AD69)/AH69 -> 0 | AG69: 2 | AH69: =SUM(AK69:AM69)+AF69 -> 39.85 | AK69: =ROUND(AD69/(1-VLOOKUP(AG69,Group,2,FALSE)),2) -> 39.85 | AL69: =IF(VLOOKUP(AG69,Group,5,FALSE)="YES",VLOOKUP(ROUND(ROUND(AK69,1)-AK69,2),Round,2,FALSE)+VLOOKUP(AG69,Group,6,FALSE),0) -> 0 | AM69: =IF(VLOOKUP(AG69,Group,7,FALSE)="",0,ROUND(AK69-0.04999,1)-AK69+AN69) -> 0 | AN69: =IF(VLOOKUP(AG69,Group,7,FALSE)="","",VLOOKUP(AG69,Group,7,FALSE)) ->  | AP69: X
B71: Trim | E71: 12" x 24" x 8mm | G71: Stair Tread | J71: Slate | P71: 8 PCS/CTN | R71: a | S71: =IF(Suggested="Yes",AB71,AH71) -> 136.6 | T71: EA | U71: =+Instructions!$B$3 -> D | X71: =+Instructions!$C$22 -> 0 | Y71: =ROUND($AB71*(1-X71)+0.004999,2) -> 136.6 | AB71: 136.6 | AC71: =+X71 -> 0 | AD71: =+Y71 -> 136.6 | AE71: =(AH71-AD71)/AH71 -> 0 | AG71: 2 | AH71: =SUM(AK71:AM71)+AF71 -> 136.6 | AK71: =ROUND(AD71/(1-VLOOKUP(AG71,Group,2,FALSE)),2) -> 136.6 | AL71: =IF(VLOOKUP(AG71,Group,5,FALSE)="YES",VLOOKUP(ROUND(ROUND(AK71,1)-AK71,2),Round,2,FALSE)+VLOOKUP(AG71,Group,6,FALSE),0) -> 0 | AM71: =IF(VLOOKUP(AG71,Group,7,FALSE)="",0,ROUND(AK71-0.04999,1)-AK71+AN71) -> 0 | AN71: =IF(VLOOKUP(AG71,Group,7,FALSE)="","",VLOOKUP(AG71,Group,7,FALSE)) ->  | AP71: X
D73: Note: | E73: a) Special Order Only. Extended Lead Time of approximately 8-10 weeks.
C75: FRENCH CLAY - Glazed Porcelain Floor & Glazed Ceramic Wall | R75: Item # Lookup: | S75: FIFC | AP75: X
D77: Colors: | E77: Bronzage Café Fume Lumiere Sombre | AP77: X
B79: Field Tile | D79: Floor: | E79: 12" x 24" | G79: Field | J79: Matte Rectified | P79: 15.75 SF/CTN | S79: =IF(Suggested="Yes",AB79,AH79) -> 8.55 | T79: SF | U79: =+Instructions!$B$3 -> D | X79: =+Instructions!$C$22 -> 0 | Y79: =ROUND($AB79*(1-X79)+0.004999,2) -> 8.55 | AB79: 8.55 | AC79: =+X79 -> 0 | AD79: =+Y79 -> 8.55 | AE79: =(AH79-AD79)/AH79 -> 0 | AG79: 1 | AH79: =SUM(AK79:AM79)+AF79 -> 8.55 | AK79: =ROUND(AD79/(1-VLOOKUP(AG79,Group,2,FALSE)),2) -> 8.55 | AL79: =IF(VLOOKUP(AG79,Group,5,FALSE)="YES",VLOOKUP(ROUND(ROUND(AK79,1)-AK79,2),Round,2,FALSE)+VLOOKUP(AG79,Group,6,FALSE),0) -> 0 | AM79: =IF(VLOOKUP(AG79,Group,7,FALSE)="",0,ROUND(AK79-0.04999,1)-AK79+AN79) -> 0 | AN79: =IF(VLOOKUP(AG79,Group,7,FALSE)="","",VLOOKUP(AG79,Group,7,FALSE)) ->  | AP79: X
B81: Decos | E81: 12" x 12" | G81: Mosaic | I81: 3" x 6" | J81: Matte | P81: 5 PCS/CTN | S81: =IF(Suggested="Yes",AB81,AH81) -> 30.55 | T81: EA | U81: =+Instructions!$B$3 -> D | X81: =+Instructions!$C$22 -> 0 | Y81: =ROUND($AB81*(1-X81)+0.004999,2) -> 30.55 | AB81: 30.55 | AC81: =+X81 -> 0 | AD81: =+Y81 -> 30.55 | AE81: =(AH81-AD81)/AH81 -> 0 | AG81: 3 | AH81: =SUM(AK81:AM81)+AF81 -> 30.55 | AK81: =ROUND(AD81/(1-VLOOKUP(AG81,Group,2,FALSE)),2) -> 30.55 | AL81: =IF(VLOOKUP(AG81,Group,5,FALSE)="YES",VLOOKUP(ROUND(ROUND(AK81,1)-AK81,2),Round,2,FALSE)+VLOOKUP(AG81,Group,6,FALSE),0) -> 0 | AM81: =IF(VLOOKUP(AG81,Group,7,FALSE)="",0,ROUND(AK81-0.04999,1)-AK81+AN81) -> 0 | AN81: =IF(VLOOKUP(AG81,Group,7,FALSE)="","",VLOOKUP(AG81,Group,7,FALSE)) ->  | AP81: X
B83: Trim | E83: 3" x 24" | G83: Bullnose | J83: Matte | P83: 16 PCS/CTN | S83: =IF(Suggested="Yes",AB83,AH83) -> 18.4 | T83: EA | U83: =+Instructions!$B$3 -> D | X83: =+Instructions!$C$22 -> 0 | Y83: =ROUND($AB83*(1-X83)+0.004999,2) -> 18.4 | AB83: 18.4 | AC83: =+X83 -> 0 | AD83: =+Y83 -> 18.4 | AE83: =(AH83-AD83)/AH83 -> 0 | AG83: 2 | AH83: =SUM(AK83:AM83)+AF83 -> 18.4 | AK83: =ROUND(AD83/(1-VLOOKUP(AG83,Group,2,FALSE)),2) -> 18.4 | AL83: =IF(VLOOKUP(AG83,Group,5,FALSE)="YES",VLOOKUP(ROUND(ROUND(AK83,1)-AK83,2),Round,2,FALSE)+VLOOKUP(AG83,Group,6,FALSE),0) -> 0 | AM83: =IF(VLOOKUP(AG83,Group,7,FALSE)="",0,ROUND(AK83-0.04999,1)-AK83+AN83) -> 0 | AN83: =IF(VLOOKUP(AG83,Group,7,FALSE)="","",VLOOKUP(AG83,Group,7,FALSE)) ->  | AP83: X
B84: Trim | E84: 6" x 12" | G84: Cove Base | J84: Matte | P84: 8 PCS/CTN | S84: =IF(Suggested="Yes",AB84,AH84) -> 25.2 | T84: EA | U84: =+Instructions!$B$3 -> D | X84: =+Instructions!$C$22 -> 0 | Y84: =ROUND($AB84*(1-X84)+0.004999,2) -> 25.2 | AB84: 25.2 | AC84: =+X84 -> 0 | AD84: =+Y84 -> 25.2 | AE84: =(AH84-AD84)/AH84 -> 0 | AG84: 2 | AH84: =SUM(AK84:AM84)+AF84 -> 25.2 | AK84: =ROUND(AD84/(1-VLOOKUP(AG84,Group,2,FALSE)),2) -> 25.2 | AL84: =IF(VLOOKUP(AG84,Group,5,FALSE)="YES",VLOOKUP(ROUND(ROUND(AK84,1)-AK84,2),Round,2,FALSE)+VLOOKUP(AG84,Group,6,FALSE),0) -> 0 | AM84: =IF(VLOOKUP(AG84,Group,7,FALSE)="",0,ROUND(AK84-0.04999,1)-AK84+AN84) -> 0 | AN84: =IF(VLOOKUP(AG84,Group,7,FALSE)="","",VLOOKUP(AG84,Group,7,FALSE)) ->  | AP84: X
D86: Colors: | E86: Automne | G86: Café | I86: Glace | K86: Sombre | AP86: X
E87: Bronzage | G87: Fume | I87: Lumiere
B89: Field Tile | D89: Wall: | E89: 4" x 12" | G89: Field | I89: Glossy | K89: DISCONTINUED 1/17/23 | P89: 10.98 SF/CTN | S89: =IF(Suggested="Yes",AB89,AH89) -> 13.2 | T89: SF | U89: =+Instructions!$B$3 -> D | X89: =+Instructions!$C$22 -> 0 | Y89: =ROUND($AB89*(1-X89)+0.004999,2) -> 13.2 | AB89: 13.2 | AC89: =+X89 -> 0 | AD89: =+Y89 -> 13.2 | AE89: =(AH89-AD89)/AH89 -> 0 | AG89: 1 | AH89: =SUM(AK89:AM89)+AF89 -> 13.2 | AK89: =ROUND(AD89/(1-VLOOKUP(AG89,Group,2,FALSE)),2) -> 13.2 | AL89: =IF(VLOOKUP(AG89,Group,5,FALSE)="YES",VLOOKUP(ROUND(ROUND(AK89,1)-AK89,2),Round,2,FALSE)+VLOOKUP(AG89,Group,6,FALSE),0) -> 0 | AM89: =IF(VLOOKUP(AG89,Group,7,FALSE)="",0,ROUND(AK89-0.04999,1)-AK89+AN89) -> 0 | AN89: =IF(VLOOKUP(AG89,Group,7,FALSE)="","",VLOOKUP(AG89,Group,7,FALSE)) ->  | AP89: X
B91: Trim | E91: 4" x 12" | G91: Bullnose | I91: Glossy | K91: DISCONTINUED 1/17/23 | P91: 12 PCS/CTN | S91: =IF(Suggested="Yes",AB91,AH91) -> 11.6 | T91: EA | U91: =+Instructions!$B$3 -> D | X91: =+Instructions!$C$22 -> 0 | Y91: =ROUND($AB91*(1-X91)+0.004999,2) -> 11.6 | AB91: 11.6 | AC91: =+X91 -> 0 | AD91: =+Y91 -> 11.6 | AE91: =(AH91-AD91)/AH91 -> 0 | AG91: 2 | AH91: =SUM(AK91:AM91)+AF91 -> 11.6 | AK91: =ROUND(AD91/(1-VLOOKUP(AG91,Group,2,FALSE)),2) -> 11.6 | AL91: =IF(VLOOKUP(AG91,Group,5,FALSE)="YES",VLOOKUP(ROUND(ROUND(AK91,1)-AK91,2),Round,2,FALSE)+VLOOKUP(AG91,Group,6,FALSE),0) -> 0 | AM91: =IF(VLOOKUP(AG91,Group,7,FALSE)="",0,ROUND(AK91-0.04999,1)-AK91+AN91) -> 0 | AN91: =IF(VLOOKUP(AG91,Group,7,FALSE)="","",VLOOKUP(AG91,Group,7,FALSE)) ->  | AP91: X
C93: LOL - Glazed Ceramic Wall | R93: Item # Lookup: | S93: FILO | AP93: X
D95: Colors: | E95: Acquamarine Grey White | AP95: X
B97: Field Tile | E97: 4" x 8" | G97: Field | P97: 6.89 SF/CTN | S97: =IF(Suggested="Yes",AB97,AH97) -> 14.7 | T97: SF | U97: =+Instructions!$B$3 -> D | X97: =+Instructions!$C$22 -> 0 | Y97: =ROUND($AB97*(1-X97)+0.004999,2) -> 14.7 | AB97: 14.7 | AC97: =+X97 -> 0 | AD97: =+Y97 -> 14.7 | AE97: =(AH97-AD97)/AH97 -> 0 | AG97: 1 | AH97: =SUM(AK97:AM97)+AF97 -> 14.7 | AK97: =ROUND(AD97/(1-VLOOKUP(AG97,Group,2,FALSE)),2) -> 14.7 | AL97: =IF(VLOOKUP(AG97,Group,5,FALSE)="YES",VLOOKUP(ROUND(ROUND(AK97,1)-AK97,2),Round,2,FALSE)+VLOOKUP(AG97,Group,6,FALSE),0) -> 0 | AM97: =IF(VLOOKUP(AG97,Group,7,FALSE)="",0,ROUND(AK97-0.04999,1)-AK97+AN97) -> 0 | AN97: =IF(VLOOKUP(AG97,Group,7,FALSE)="","",VLOOKUP(AG97,Group,7,FALSE)) ->  | AP97: X
D99: Colors: | E99: Blue Red Yellow | AP99: X
B101: Field Tile | E101: 4" x 8" | G101: Field | P101: 6.89 SF/CTN | S101: =IF(Suggested="Yes",AB101,AH101) -> 15.45 | T101: SF | U101: =+Instructions!$B$3 -> D | X101: =+Instructions!$C$22 -> 0 | Y101: =ROUND($AB101*(1-X101)+0.004999,2) -> 15.45 | AB101: 15.45 | AC101: =+X101 -> 0 | AD101: =+Y101 -> 15.45 | AE101: =(AH101-AD101)/AH101 -> 0 | AG101: 1 | AH101: =SUM(AK101:AM101)+AF101 -> 15.45 | AK101: =ROUND(AD101/(1-VLOOKUP(AG101,Group,2,FALSE)),2) -> 15.45 | AL101: =IF(VLOOKUP(AG101,Group,5,FALSE)="YES",VLOOKUP(ROUND(ROUND(AK101,1)-AK101,2),Round,2,FALSE)+VLOOKUP(AG101,Group,6,FALSE),0) -> 0 | AM101: =IF(VLOOKUP(AG101,Group,7,FALSE)="",0,ROUND(AK101-0.04999,1)-AK101+AN101) -> 0 | AN101: =IF(VLOOKUP(AG101,Group,7,FALSE)="","",VLOOKUP(AG101,Group,7,FALSE)) ->  | AP101: X
D103: Colors: | E103: Acquamarine Yellow | AP103: X
B105: Decos | E105: 4" x 8" | G105: Deco LOL | P105: 6.89 SF/CTN | R105: a,b | S105: =IF(Suggested="Yes",AB105,AH105) -> 15.95 | T105: SF | U105: =+Instructions!$B$3 -> D | X105: =+Instructions!$C$22 -> 0 | Y105: =ROUND($AB105*(1-X105)+0.004999,2) -> 15.95 | AB105: 15.95 | AC105: =+X105 -> 0 | AD105: =+Y105 -> 15.95 | AE105: =(AH105-AD105)/AH105 -> 0 | AG105: 3 | AH105: =SUM(AK105:AM105)+AF105 -> 15.95 | AK105: =ROUND(AD105/(1-VLOOKUP(AG105,Group,2,FALSE)),2) -> 15.95 | AL105: =IF(VLOOKUP(AG105,Group,5,FALSE)="YES",VLOOKUP(ROUND(ROUND(AK105,1)-AK105,2),Round,2,FALSE)+VLOOKUP(AG105,Group,6,FALSE),0) -> 0 | AM105: =IF(VLOOKUP(AG105,Group,7,FALSE)="",0,ROUND(AK105-0.04999,1)-AK105+AN105) -> 0 | AN105: =IF(VLOOKUP(AG105,Group,7,FALSE)="","",VLOOKUP(AG105,Group,7,FALSE)) ->  | AP105: X
E107: Joy Deco's: | G107: Art Dott Flo Key Leaf Mya | AP107: X
B109: Decos | E109: 4" x 8" | G109: Deco | P109: 6.89 SF/CTN | R109: b | S109: =IF(Suggested="Yes",AB109,AH109) -> 15.95 | T109: SF | U109: =+Instructions!$B$3 -> D | X109: =+Instructions!$C$22 -> 0 | Y109: =ROUND($AB109*(1-X109)+0.004999,2) -> 15.95 | AB109: 15.95 | AC109: =+X109 -> 0 | AD109: =+Y109 -> 15.95 | AE109: =(AH109-AD109)/AH109 -> 0 | AG109: 3 | AH109: =SUM(AK109:AM109)+AF109 -> 15.95 | AK109: =ROUND(AD109/(1-VLOOKUP(AG109,Group,2,FALSE)),2) -> 15.95 | AL109: =IF(VLOOKUP(AG109,Group,5,FALSE)="YES",VLOOKUP(ROUND(ROUND(AK109,1)-AK109,2),Round,2,FALSE)+VLOOKUP(AG109,Group,6,FALSE),0) -> 0 | AM109: =IF(VLOOKUP(AG109,Group,7,FALSE)="",0,ROUND(AK109-0.04999,1)-AK109+AN109) -> 0 | AN109: =IF(VLOOKUP(AG109,Group,7,FALSE)="","",VLOOKUP(AG109,Group,7,FALSE)) ->  | AP109: X
D111: Notes: | E111: a) Random packaging. | I111: b) Extended Lead Time - approximately 8-10 weeks.
C113: MARBLE LAB - Glazed Porcelain | R113: Item # Lookup: | S113: FIML | AP113: X
D115: Colors: | E115: Arabescato Orobico | H115: Calacatta Statuario | K115: Pietra Grey | N115: Taxos | AP115: X
E116: Calacatta Bellissimo | H116: Glam Bronze | K116: Premium White | AP116: X
B118: Stock - Field Tile | E118: 12" x 24" | G118: Field | J118: Honed | P118: 15.50 SF/CTN | R118: a | S118: =IF(Suggested="Yes",AB118,AH118) -> 19.8 | T118: SF | U118: =+Instructions!$B$3 -> D | X118: =+Instructions!$C$22 -> 0 | Y118: =ROUND($AB118*(1-X118)+0.004999,2) -> 19.8 | AB118: 19.8 | AC118: =+X118 -> 0 | AD118: 19.8 | AE118: =(AH118-AD118)/AH118 -> 0 | AG118: 4 | AH118: =SUM(AK118:AM118)+AF118 -> 19.8 | AK118: =ROUND(AD118/(1-VLOOKUP(AG118,Group,2,FALSE)),2) -> 19.8 | AL118: =IF(VLOOKUP(AG118,Group,5,FALSE)="YES",VLOOKUP(ROUND(ROUND(AK118,1)-AK118,2),Round,2,FALSE)+VLOOKUP(AG118,Group,6,FALSE),0) -> 0 | AM118: =IF(VLOOKUP(AG118,Group,7,FALSE)="",0,ROUND(AK118-0.04999,1)-AK118+AN118) -> 0 | AN118: =IF(VLOOKUP(AG118,Group,7,FALSE)="","",VLOOKUP(AG118,Group,7,FALSE)) ->  | AP118: X
B119: Stock - Field Tile | E119: 24" x 24" | G119: Field | J119: Honed | P119: 15.50 SF/CTN | R119: a | S119: =IF(Suggested="Yes",AB119,AH119) -> 20.5 | T119: SF | U119: =+Instructions!$B$3 -> D | X119: =+Instructions!$C$22 -> 0 | Y119: =ROUND($AB119*(1-X119)+0.004999,2) -> 20.5 | AB119: 20.5 | AC119: 0 | AD119: 20.5 | AE119: =(AH119-AD119)/AH119 -> 0 | AG119: 4 | AH119: =SUM(AK119:AM119)+AF119 -> 20.5 | AK119: =ROUND(AD119/(1-VLOOKUP(AG119,Group,2,FALSE)),2) -> 20.5 | AL119: =IF(VLOOKUP(AG119,Group,5,FALSE)="YES",VLOOKUP(ROUND(ROUND(AK119,1)-AK119,2),Round,2,FALSE)+VLOOKUP(AG119,Group,6,FALSE),0) -> 0 | AM119: =IF(VLOOKUP(AG119,Group,7,FALSE)="",0,ROUND(AK119-0.04999,1)-AK119+AN119) -> 0 | AN119: =IF(VLOOKUP(AG119,Group,7,FALSE)="","",VLOOKUP(AG119,Group,7,FALSE)) ->  | AP119: X
B120: Stock - Field Tile | E120: 24" x 48" | G120: Field | J120: Honed | P120: 15.50 SF/CTN | R120: a | S120: =IF(Suggested="Yes",AB120,AH120) -> 21.7 | T120: SF | U120: =+Instructions!$B$3 -> D | X120: =+Instructions!$C$22 -> 0 | Y120: =ROUND($AB120*(1-X120)+0.004999,2) -> 21.7 | AB120: 21.7 | AC120: 0 | AD120: 21.7 | AE120: =(AH120-AD120)/AH120 -> 0 | AG120: 4 | AH120: =SUM(AK120:AM120)+AF120 -> 21.7 | AK120: =ROUND(AD120/(1-VLOOKUP(AG120,Group,2,FALSE)),2) -> 21.7 | AL120: =IF(VLOOKUP(AG120,Group,5,FALSE)="YES",VLOOKUP(ROUND(ROUND(AK120,1)-AK120,2),Round,2,FALSE)+VLOOKUP(AG120,Group,6,FALSE),0) -> 0 | AM120: =IF(VLOOKUP(AG120,Group,7,FALSE)="",0,ROUND(AK120-0.04999,1)-AK120+AN120) -> 0 | AN120: =IF(VLOOKUP(AG120,Group,7,FALSE)="","",VLOOKUP(AG120,Group,7,FALSE)) ->  | AP120: X
B122: Stock - Trim | E122: 4" x 24" | G122: Bullnose | J122: Honed | P122: 14 PCS/CTN | R122: b | S122: =IF(Suggested="Yes",AB122,AH122) -> 33.35 | T122: EA | U122: =+Instructions!$B$3 -> D | X122: =+Instructions!$C$22 -> 0 | Y122: =ROUND($AB122*(1-X122)+0.004999,2) -> 33.35 | AB122: 33.35 | AC122: =+X122 -> 0 | AD122: =+Y122 -> 33.35 | AE122: =(AH122-AD122)/AH122 -> 0 | AG122: 5 | AH122: =SUM(AK122:AM122)+AF122 -> 33.35 | AK122: =ROUND(AD122/(1-VLOOKUP(AG122,Group,2,FALSE)),2) -> 33.35 | AL122: =IF(VLOOKUP(AG122,Group,5,FALSE)="YES",VLOOKUP(ROUND(ROUND(AK122,1)-AK122,2),Round,2,FALSE)+VLOOKUP(AG122,Group,6,FALSE),0) -> 0 | AM122: =IF(VLOOKUP(AG122,Group,7,FALSE)="",0,ROUND(AK122-0.04999,1)-AK122+AN122) -> 0 | AN122: =IF(VLOOKUP(AG122,Group,7,FALSE)="","",VLOOKUP(AG122,Group,7,FALSE)) ->  | AP122: X
B124: Stock - Trim | E124: 12" x 24" | G124: Stair Tread | J124: Honed | P124: 8 PCS/CTN | R124: b | S124: =IF(Suggested="Yes",AB124,AH124) -> 112.3 | T124: EA | U124: =+Instructions!$B$3 -> D | X124: =+Instructions!$C$22 -> 0 | Y124: =ROUND($AB124*(1-X124)+0.004999,2) -> 112.3 | AB124: 112.3 | AC124: =+X124 -> 0 | AD124: =+Y124 -> 112.3 | AE124: =(AH124-AD124)/AH124 -> 0 | AG124: 5 | AH124: =SUM(AK124:AM124)+AF124 -> 112.3 | AK124: =ROUND(AD124/(1-VLOOKUP(AG124,Group,2,FALSE)),2) -> 112.3 | AL124: =IF(VLOOKUP(AG124,Group,5,FALSE)="YES",VLOOKUP(ROUND(ROUND(AK124,1)-AK124,2),Round,2,FALSE)+VLOOKUP(AG124,Group,6,FALSE),0) -> 0 | AM124: =IF(VLOOKUP(AG124,Group,7,FALSE)="",0,ROUND(AK124-0.04999,1)-AK124+AN124) -> 0 | AN124: =IF(VLOOKUP(AG124,Group,7,FALSE)="","",VLOOKUP(AG124,Group,7,FALSE)) ->  | AP124: X
B126: Field Tile | E126: 12" x 24" | G126: Field | J126: Matte | P126: 15.50 SF/CTN | R126: b,c | S126: =IF(Suggested="Yes",AB126,AH126) -> 20.75 | T126: SF | U126: =+Instructions!$B$3 -> D | X126: =+Instructions!$C$22 -> 0 | Y126: =ROUND($AB126*(1-X126)+0.004999,2) -> 20.75 | AB126: 20.75 | AC126: =+X126 -> 0 | AD126: 20.75 | AE126: =(AH126-AD126)/AH126 -> 0 | AG126: 1 | AH126: =SUM(AK126:AM126)+AF126 -> 20.75 | AK126: =ROUND(AD126/(1-VLOOKUP(AG126,Group,2,FALSE)),2) -> 20.75 | AL126: =IF(VLOOKUP(AG126,Group,5,FALSE)="YES",VLOOKUP(ROUND(ROUND(AK126,1)-AK126,2),Round,2,FALSE)+VLOOKUP(AG126,Group,6,FALSE),0) -> 0 | AM126: =IF(VLOOKUP(AG126,Group,7,FALSE)="",0,ROUND(AK126-0.04999,1)-AK126+AN126) -> 0 | AN126: =IF(VLOOKUP(AG126,Group,7,FALSE)="","",VLOOKUP(AG126,Group,7,FALSE)) ->  | AP126: X
B127: Field Tile | E127: 24" x 24" | G127: Field | J127: Matte | P127: 15.50 SF/CTN | R127: b,c | S127: =IF(Suggested="Yes",AB127,AH127) -> 21.4 | T127: SF | U127: =+Instructions!$B$3 -> D | X127: =+Instructions!$C$22 -> 0 | Y127: =ROUND($AB127*(1-X127)+0.004999,2) -> 21.4 | AB127: 21.4 | AC127: 0 | AD127: 21.4 | AE127: =(AH127-AD127)/AH127 -> 0 | AG127: 1 | AH127: =SUM(AK127:AM127)+AF127 -> 21.4 | AK127: =ROUND(AD127/(1-VLOOKUP(AG127,Group,2,FALSE)),2) -> 21.4 | AL127: =IF(VLOOKUP(AG127,Group,5,FALSE)="YES",VLOOKUP(ROUND(ROUND(AK127,1)-AK127,2),Round,2,FALSE)+VLOOKUP(AG127,Group,6,FALSE),0) -> 0 | AM127: =IF(VLOOKUP(AG127,Group,7,FALSE)="",0,ROUND(AK127-0.04999,1)-AK127+AN127) -> 0 | AN127: =IF(VLOOKUP(AG127,Group,7,FALSE)="","",VLOOKUP(AG127,Group,7,FALSE)) ->  | AP127: X
B128: Field Tile | E128: 24" x 48" | G128: Field | J128: Matte | P128: 15.50 SF/CTN | R128: b,c | S128: =IF(Suggested="Yes",AB128,AH128) -> 22.6 | T128: SF | U128: =+Instructions!$B$3 -> D | X128: =+Instructions!$C$22 -> 0 | Y128: =ROUND($AB128*(1-X128)+0.004999,2) -> 22.6 | AB128: 22.6 | AC128: 0 | AD128: 22.6 | AE128: =(AH128-AD128)/AH128 -> 0 | AG128: 1 | AH128: =SUM(AK128:AM128)+AF128 -> 22.6 | AK128: =ROUND(AD128/(1-VLOOKUP(AG128,Group,2,FALSE)),2) -> 22.6 | AL128: =IF(VLOOKUP(AG128,Group,5,FALSE)="YES",VLOOKUP(ROUND(ROUND(AK128,1)-AK128,2),Round,2,FALSE)+VLOOKUP(AG128,Group,6,FALSE),0) -> 0 | AM128: =IF(VLOOKUP(AG128,Group,7,FALSE)="",0,ROUND(AK128-0.04999,1)-AK128+AN128) -> 0 | AN128: =IF(VLOOKUP(AG128,Group,7,FALSE)="","",VLOOKUP(AG128,Group,7,FALSE)) ->  | AP128: X
B130: Trim | E130: 12" x 24" | G130: Stair Tread | J130: Matte | P130: 8 PCS/CTN | R130: b,c | S130: =IF(Suggested="Yes",AB130,AH130) -> 115.35 | T130: EA | U130: =+Instructions!$B$3 -> D | X130: =+Instructions!$C$22 -> 0 | Y130: =ROUND($AB130*(1-X130)+0.004999,2) -> 115.35 | AB130: 115.35 | AC130: =+X130 -> 0 | AD130: =+Y130 -> 115.35 | AE130: =(AH130-AD130)/AH130 -> 0 | AG130: 2 | AH130: =SUM(AK130:AM130)+AF130 -> 115.35 | AK130: =ROUND(AD130/(1-VLOOKUP(AG130,Group,2,FALSE)),2) -> 115.35 | AL130: =IF(VLOOKUP(AG130,Group,5,FALSE)="YES",VLOOKUP(ROUND(ROUND(AK130,1)-AK130,2),Round,2,FALSE)+VLOOKUP(AG130,Group,6,FALSE),0) -> 0 | AM130: =IF(VLOOKUP(AG130,Group,7,FALSE)="",0,ROUND(AK130-0.04999,1)-AK130+AN130) -> 0 | AN130: =IF(VLOOKUP(AG130,Group,7,FALSE)="","",VLOOKUP(AG130,Group,7,FALSE)) ->  | AP130: X
B132: Stock - Field Tile | E132: 12" x 24" | G132: Field | J132: Polished (Bright) | P132: 11.63 SF/CTN | R132: a,d | S132: =IF(Suggested="Yes",AB132,AH132) -> 23.95 | T132: SF | U132: =+Instructions!$B$3 -> D | X132: =+Instructions!$C$22 -> 0 | Y132: =ROUND($AB132*(1-X132)+0.004999,2) -> 23.95 | AB132: 23.95 | AC132: =+X132 -> 0 | AD132: 23.95 | AE132: =(AH132-AD132)/AH132 -> 0 | AG132: 4 | AH132: =SUM(AK132:AM132)+AF132 -> 23.95 | AK132: =ROUND(AD132/(1-VLOOKUP(AG132,Group,2,FALSE)),2) -> 23.95 | AL132: =IF(VLOOKUP(AG132,Group,5,FALSE)="YES",VLOOKUP(ROUND(ROUND(AK132,1)-AK132,2),Round,2,FALSE)+VLOOKUP(AG132,Group,6,FALSE),0) -> 0 | AM132: =IF(VLOOKUP(AG132,Group,7,FALSE)="",0,ROUND(AK132-0.04999,1)-AK132+AN132) -> 0 | AN132: =IF(VLOOKUP(AG132,Group,7,FALSE)="","",VLOOKUP(AG132,Group,7,FALSE)) ->  | AP132: X
B133: Stock - Field Tile | E133: 24" x 24" | G133: Field | J133: Polished (Bright) | P133: 15.50 SF/CTN | R133: a | S133: =IF(Suggested="Yes",AB133,AH133) -> 24.95 | T133: SF | U133: =+Instructions!$B$3 -> D | X133: =+Instructions!$C$22 -> 0 | Y133: =ROUND($AB133*(1-X133)+0.004999,2) -> 24.95 | AB133: 24.95 | AC133: 0 | AD133: 24.95 | AE133: =(AH133-AD133)/AH133 -> 0 | AG133: 4 | AH133: =SUM(AK133:AM133)+AF133 -> 24.95 | AK133: =ROUND(AD133/(1-VLOOKUP(AG133,Group,2,FALSE)),2) -> 24.95 | AL133: =IF(VLOOKUP(AG133,Group,5,FALSE)="YES",VLOOKUP(ROUND(ROUND(AK133,1)-AK133,2),Round,2,FALSE)+VLOOKUP(AG133,Group,6,FALSE),0) -> 0 | AM133: =IF(VLOOKUP(AG133,Group,7,FALSE)="",0,ROUND(AK133-0.04999,1)-AK133+AN133) -> 0 | AN133: =IF(VLOOKUP(AG133,Group,7,FALSE)="","",VLOOKUP(AG133,Group,7,FALSE)) ->  | AP133: X
B134: Stock - Field Tile | E134: 24" x 48" | G134: Field | J134: Polished (Bright) | P134: 15.50 SF/CTN | R134: a | S134: =IF(Suggested="Yes",AB134,AH134) -> 26.15 | T134: SF | U134: =+Instructions!$B$3 -> D | X134: =+Instructions!$C$22 -> 0 | Y134: =ROUND($AB134*(1-X134)+0.004999,2) -> 26.15 | AB134: 26.15 | AC134: 0 | AD134: 26.15 | AE134: =(AH134-AD134)/AH134 -> 0 | AG134: 4 | AH134: =SUM(AK134:AM134)+AF134 -> 26.15 | AK134: =ROUND(AD134/(1-VLOOKUP(AG134,Group,2,FALSE)),2) -> 26.15 | AL134: =IF(VLOOKUP(AG134,Group,5,FALSE)="YES",VLOOKUP(ROUND(ROUND(AK134,1)-AK134,2),Round,2,FALSE)+VLOOKUP(AG134,Group,6,FALSE),0) -> 0 | AM134: =IF(VLOOKUP(AG134,Group,7,FALSE)="",0,ROUND(AK134-0.04999,1)-AK134+AN134) -> 0 | AN134: =IF(VLOOKUP(AG134,Group,7,FALSE)="","",VLOOKUP(AG134,Group,7,FALSE)) ->  | AP134: X
B136: Stock - Trim | E136: 4" x 24" | G136: Bullnose | J136: Polished (Bright) | P136: 14 PCS/CTN | R136: b | S136: =IF(Suggested="Yes",AB136,AH136) -> 37.3 | T136: EA | U136: =+Instructions!$B$3 -> D | X136: =+Instructions!$C$22 -> 0 | Y136: =ROUND($AB136*(1-X136)+0.004999,2) -> 37.3 | AB136: 37.3 | AC136: =+X136 -> 0 | AD136: =+Y136 -> 37.3 | AE136: =(AH136-AD136)/AH136 -> 0 | AG136: 5 | AH136: =SUM(AK136:AM136)+AF136 -> 37.3 | AK136: =ROUND(AD136/(1-VLOOKUP(AG136,Group,2,FALSE)),2) -> 37.3 | AL136: =IF(VLOOKUP(AG136,Group,5,FALSE)="YES",VLOOKUP(ROUND(ROUND(AK136,1)-AK136,2),Round,2,FALSE)+VLOOKUP(AG136,Group,6,FALSE),0) -> 0 | AM136: =IF(VLOOKUP(AG136,Group,7,FALSE)="",0,ROUND(AK136-0.04999,1)-AK136+AN136) -> 0 | AN136: =IF(VLOOKUP(AG136,Group,7,FALSE)="","",VLOOKUP(AG136,Group,7,FALSE)) ->  | AP136: X
B138: Stock - Trim | E138: 12" x 24" | G138: Stair Tread | J138: Polished (Bright) | P138: 8 PCS/CTN | R138: b | S138: =IF(Suggested="Yes",AB138,AH138) -> 124.5 | T138: EA | U138: =+Instructions!$B$3 -> D | X138: =+Instructions!$C$22 -> 0 | Y138: =ROUND($AB138*(1-X138)+0.004999,2) -> 124.5 | AB138: 124.5 | AC138: =+X138 -> 0 | AD138: =+Y138 -> 124.5 | AE138: =(AH138-AD138)/AH138 -> 0 | AG138: 5 | AH138: =SUM(AK138:AM138)+AF138 -> 124.5 | AK138: =ROUND(AD138/(1-VLOOKUP(AG138,Group,2,FALSE)),2) -> 124.5 | AL138: =IF(VLOOKUP(AG138,Group,5,FALSE)="YES",VLOOKUP(ROUND(ROUND(AK138,1)-AK138,2),Round,2,FALSE)+VLOOKUP(AG138,Group,6,FALSE),0) -> 0 | AM138: =IF(VLOOKUP(AG138,Group,7,FALSE)="",0,ROUND(AK138-0.04999,1)-AK138+AN138) -> 0 | AN138: =IF(VLOOKUP(AG138,Group,7,FALSE)="","",VLOOKUP(AG138,Group,7,FALSE)) ->  | AP138: X
D140: Color: | E140: Dark Marquina | AP140: X
B142: Stock - Field Tile | E142: 12" x 24" | G142: Field | J142: Polished (Bright) | P142: 11.63 SF/CTN | S142: =IF(Suggested="Yes",AB142,AH142) -> 24 | T142: SF | U142: =+Instructions!$B$3 -> D | X142: =+Instructions!$C$22 -> 0 | Y142: =ROUND($AB142*(1-X142)+0.004999,2) -> 24 | AB142: 24 | AC142: =+X142 -> 0 | AD142: 24 | AE142: =(AH142-AD142)/AH142 -> 0 | AG142: 4 | AH142: =SUM(AK142:AM142)+AF142 -> 24 | AK142: =ROUND(AD142/(1-VLOOKUP(AG142,Group,2,FALSE)),2) -> 24 | AL142: =IF(VLOOKUP(AG142,Group,5,FALSE)="YES",VLOOKUP(ROUND(ROUND(AK142,1)-AK142,2),Round,2,FALSE)+VLOOKUP(AG142,Group,6,FALSE),0) -> 0 | AM142: =IF(VLOOKUP(AG142,Group,7,FALSE)="",0,ROUND(AK142-0.04999,1)-AK142+AN142) -> 0 | AN142: =IF(VLOOKUP(AG142,Group,7,FALSE)="","",VLOOKUP(AG142,Group,7,FALSE)) ->  | AP142: X
B143: Stock - Field Tile | E143: 24" x 24" | G143: Field | J143: Polished (Bright) | P143: 15.50 SF/CTN | S143: =IF(Suggested="Yes",AB143,AH143) -> 25.05 | T143: SF | U143: =+Instructions!$B$3 -> D | X143: =+Instructions!$C$22 -> 0 | Y143: =ROUND($AB143*(1-X143)+0.004999,2) -> 25.05 | AB143: 25.05 | AC143: 0 | AD143: 25.05 | AE143: =(AH143-AD143)/AH143 -> 0 | AG143: 4 | AH143: =SUM(AK143:AM143)+AF143 -> 25.05 | AK143: =ROUND(AD143/(1-VLOOKUP(AG143,Group,2,FALSE)),2) -> 25.05 | AL143: =IF(VLOOKUP(AG143,Group,5,FALSE)="YES",VLOOKUP(ROUND(ROUND(AK143,1)-AK143,2),Round,2,FALSE)+VLOOKUP(AG143,Group,6,FALSE),0) -> 0 | AM143: =IF(VLOOKUP(AG143,Group,7,FALSE)="",0,ROUND(AK143-0.04999,1)-AK143+AN143) -> 0 | AN143: =IF(VLOOKUP(AG143,Group,7,FALSE)="","",VLOOKUP(AG143,Group,7,FALSE)) ->  | AP143: X
B144: Stock - Field Tile | E144: 24" x 48" | G144: Field | J144: Polished (Bright) | P144: 15.50 SF/CTN | S144: =IF(Suggested="Yes",AB144,AH144) -> 26.25 | T144: SF | U144: =+Instructions!$B$3 -> D | X144: =+Instructions!$C$22 -> 0 | Y144: =ROUND($AB144*(1-X144)+0.004999,2) -> 26.25 | AB144: 26.25 | AC144: 0 | AD144: 26.25 | AE144: =(AH144-AD144)/AH144 -> 0 | AG144: 4 | AH144: =SUM(AK144:AM144)+AF144 -> 26.25 | AK144: =ROUND(AD144/(1-VLOOKUP(AG144,Group,2,FALSE)),2) -> 26.25 | AL144: =IF(VLOOKUP(AG144,Group,5,FALSE)="YES",VLOOKUP(ROUND(ROUND(AK144,1)-AK144,2),Round,2,FALSE)+VLOOKUP(AG144,Group,6,FALSE),0) -> 0 | AM144: =IF(VLOOKUP(AG144,Group,7,FALSE)="",0,ROUND(AK144-0.04999,1)-AK144+AN144) -> 0 | AN144: =IF(VLOOKUP(AG144,Group,7,FALSE)="","",VLOOKUP(AG144,Group,7,FALSE)) ->  | AP144: X
B146: Stock - Trim | E146: 4" x 24" | G146: Bullnose | J146: Polished (Bright) | P146: 14 PCS/CTN | R146: b | S146: =IF(Suggested="Yes",AB146,AH146) -> 37.3 | T146: EA | U146: =+Instructions!$B$3 -> D | X146: =+Instructions!$C$22 -> 0 | Y146: =ROUND($AB146*(1-X146)+0.004999,2) -> 37.3 | AB146: 37.3 | AC146: =+X146 -> 0 | AD146: =+Y146 -> 37.3 | AE146: =(AH146-AD146)/AH146 -> 0 | AG146: 5 | AH146: =SUM(AK146:AM146)+AF146 -> 37.3 | AK146: =ROUND(AD146/(1-VLOOKUP(AG146,Group,2,FALSE)),2) -> 37.3 | AL146: =IF(VLOOKUP(AG146,Group,5,FALSE)="YES",VLOOKUP(ROUND(ROUND(AK146,1)-AK146,2),Round,2,FALSE)+VLOOKUP(AG146,Group,6,FALSE),0) -> 0 | AM146: =IF(VLOOKUP(AG146,Group,7,FALSE)="",0,ROUND(AK146-0.04999,1)-AK146+AN146) -> 0 | AN146: =IF(VLOOKUP(AG146,Group,7,FALSE)="","",VLOOKUP(AG146,Group,7,FALSE)) ->  | AP146: X
B148: Stock - Trim | E148: 12" x 24" | G148: Stair Tread | J148: Polished (Bright) | P148: 8 PCS/CTN | R148: b | S148: =IF(Suggested="Yes",AB148,AH148) -> 124.5 | T148: EA | U148: =+Instructions!$B$3 -> D | X148: =+Instructions!$C$22 -> 0 | Y148: =ROUND($AB148*(1-X148)+0.004999,2) -> 124.5 | AB148: 124.5 | AC148: =+X148 -> 0 | AD148: =+Y148 -> 124.5 | AE148: =(AH148-AD148)/AH148 -> 0 | AG148: 5 | AH148: =SUM(AK148:AM148)+AF148 -> 124.5 | AK148: =ROUND(AD148/(1-VLOOKUP(AG148,Group,2,FALSE)),2) -> 124.5 | AL148: =IF(VLOOKUP(AG148,Group,5,FALSE)="YES",VLOOKUP(ROUND(ROUND(AK148,1)-AK148,2),Round,2,FALSE)+VLOOKUP(AG148,Group,6,FALSE),0) -> 0 | AM148: =IF(VLOOKUP(AG148,Group,7,FALSE)="",0,ROUND(AK148-0.04999,1)-AK148+AN148) -> 0 | AN148: =IF(VLOOKUP(AG148,Group,7,FALSE)="","",VLOOKUP(AG148,Group,7,FALSE)) ->  | AP148: X
D150: Colors: | E150: Alpi Chiaro Venato | H150: Breccia Mirabile | K150: Lepanto Rubino | N150: Travertino | AP150: X
E151: Bardiglio Sublime | H151: Calacatta Dorato | K151: Royal Marfil | N151: White Beauty | AP151: X
B153: Field Tile | E153: 24" x 24" | G153: Field | J153: Honed | P153: 15.50 SF/CTN | R153: e | S153: =IF(Suggested="Yes",AB153,AH153) -> 21 | T153: SF | U153: =+Instructions!$B$3 -> D | X153: =+Instructions!$C$22 -> 0 | Y153: =ROUND($AB153*(1-X153)+0.004999,2) -> 21 | AB153: 21 | AC153: =+X153 -> 0 | AD153: =+Y153 -> 21 | AE153: =(AH153-AD153)/AH153 -> 0 | AG153: 1 | AH153: =SUM(AK153:AM153)+AF153 -> 21 | AK153: =ROUND(AD153/(1-VLOOKUP(AG153,Group,2,FALSE)),2) -> 21 | AL153: =IF(VLOOKUP(AG153,Group,5,FALSE)="YES",VLOOKUP(ROUND(ROUND(AK153,1)-AK153,2),Round,2,FALSE)+VLOOKUP(AG153,Group,6,FALSE),0) -> 0 | AM153: =IF(VLOOKUP(AG153,Group,7,FALSE)="",0,ROUND(AK153-0.04999,1)-AK153+AN153) -> 0 | AN153: =IF(VLOOKUP(AG153,Group,7,FALSE)="","",VLOOKUP(AG153,Group,7,FALSE)) ->  | AP153: X
B154: Field Tile | E154: 24" x 48" | G154: Field | J154: Honed | P154: 15.50 SF/CTN | R154: e | S154: =IF(Suggested="Yes",AB154,AH154) -> 22.25 | T154: SF | U154: =+Instructions!$B$3 -> D | X154: =+Instructions!$C$22 -> 0 | Y154: =ROUND($AB154*(1-X154)+0.004999,2) -> 22.25 | AB154: 22.25 | AC154: =+X154 -> 0 | AD154: =+Y154 -> 22.25 | AE154: =(AH154-AD154)/AH154 -> 0 | AG154: 1 | AH154: =SUM(AK154:AM154)+AF154 -> 22.25 | AK154: =ROUND(AD154/(1-VLOOKUP(AG154,Group,2,FALSE)),2) -> 22.25 | AL154: =IF(VLOOKUP(AG154,Group,5,FALSE)="YES",VLOOKUP(ROUND(ROUND(AK154,1)-AK154,2),Round,2,FALSE)+VLOOKUP(AG154,Group,6,FALSE),0) -> 0 | AM154: =IF(VLOOKUP(AG154,Group,7,FALSE)="",0,ROUND(AK154-0.04999,1)-AK154+AN154) -> 0 | AN154: =IF(VLOOKUP(AG154,Group,7,FALSE)="","",VLOOKUP(AG154,Group,7,FALSE)) ->  | AP154: X
B156: Stock - Trim | E156: 4" x 24" | G156: Bullnose | J156: Honed | P156: 14 PCS/CTN | R156: e | S156: =IF(Suggested="Yes",AB156,AH156) -> 49.2 | T156: EA | U156: =+Instructions!$B$3 -> D | X156: =+Instructions!$C$22 -> 0 | Y156: =ROUND($AB156*(1-X156)+0.004999,2) -> 49.2 | AB156: 49.2 | AC156: =+X156 -> 0 | AD156: =+Y156 -> 49.2 | AE156: =(AH156-AD156)/AH156 -> 0 | AG156: 5 | AH156: =SUM(AK156:AM156)+AF156 -> 49.2 | AK156: =ROUND(AD156/(1-VLOOKUP(AG156,Group,2,FALSE)),2) -> 49.2 | AL156: =IF(VLOOKUP(AG156,Group,5,FALSE)="YES",VLOOKUP(ROUND(ROUND(AK156,1)-AK156,2),Round,2,FALSE)+VLOOKUP(AG156,Group,6,FALSE),0) -> 0 | AM156: =IF(VLOOKUP(AG156,Group,7,FALSE)="",0,ROUND(AK156-0.04999,1)-AK156+AN156) -> 0 | AN156: =IF(VLOOKUP(AG156,Group,7,FALSE)="","",VLOOKUP(AG156,Group,7,FALSE)) ->  | AP156: X
B158: Stock - Trim | E158: 12" x 24" | G158: Stair Tread | J158: Honed | P158: 8 PCS/CTN | R158: e | S158: =IF(Suggested="Yes",AB158,AH158) -> 132.75 | T158: EA | U158: =+Instructions!$B$3 -> D | X158: =+Instructions!$C$22 -> 0 | Y158: =ROUND($AB158*(1-X158)+0.004999,2) -> 132.75 | AB158: 132.75 | AC158: =+X158 -> 0 | AD158: =+Y158 -> 132.75 | AE158: =(AH158-AD158)/AH158 -> 0 | AG158: 5 | AH158: =SUM(AK158:AM158)+AF158 -> 132.75 | AK158: =ROUND(AD158/(1-VLOOKUP(AG158,Group,2,FALSE)),2) -> 132.75 | AL158: =IF(VLOOKUP(AG158,Group,5,FALSE)="YES",VLOOKUP(ROUND(ROUND(AK158,1)-AK158,2),Round,2,FALSE)+VLOOKUP(AG158,Group,6,FALSE),0) -> 0 | AM158: =IF(VLOOKUP(AG158,Group,7,FALSE)="",0,ROUND(AK158-0.04999,1)-AK158+AN158) -> 0 | AN158: =IF(VLOOKUP(AG158,Group,7,FALSE)="","",VLOOKUP(AG158,Group,7,FALSE)) ->  | AP158: X
B160: Field Tile | E160: 24" x 24" | G160: Field | J160: Polished (Bright) | P160: 15.50 SF/CTN | S160: =IF(Suggested="Yes",AB160,AH160) -> 25.3 | T160: SF | U160: =+Instructions!$B$3 -> D | X160: =+Instructions!$C$22 -> 0 | Y160: =ROUND($AB160*(1-X160)+0.004999,2) -> 25.3 | AB160: 25.3 | AC160: =+X160 -> 0 | AD160: =+Y160 -> 25.3 | AE160: =(AH160-AD160)/AH160 -> 0 | AG160: 1 | AH160: =SUM(AK160:AM160)+AF160 -> 25.3 | AK160: =ROUND(AD160/(1-VLOOKUP(AG160,Group,2,FALSE)),2) -> 25.3 | AL160: =IF(VLOOKUP(AG160,Group,5,FALSE)="YES",VLOOKUP(ROUND(ROUND(AK160,1)-AK160,2),Round,2,FALSE)+VLOOKUP(AG160,Group,6,FALSE),0) -> 0 | AM160: =IF(VLOOKUP(AG160,Group,7,FALSE)="",0,ROUND(AK160-0.04999,1)-AK160+AN160) -> 0 | AN160: =IF(VLOOKUP(AG160,Group,7,FALSE)="","",VLOOKUP(AG160,Group,7,FALSE)) ->  | AP160: X
B161: Field Tile | E161: 24" x 48" | G161: Field | J161: Polished (Bright) | P161: 15.50 SF/CTN | S161: =IF(Suggested="Yes",AB161,AH161) -> 26.5 | T161: SF | U161: =+Instructions!$B$3 -> D | X161: =+Instructions!$C$22 -> 0 | Y161: =ROUND($AB161*(1-X161)+0.004999,2) -> 26.5 | AB161: 26.5 | AC161: =+X161 -> 0 | AD161: =+Y161 -> 26.5 | AE161: =(AH161-AD161)/AH161 -> 0 | AG161: 1 | AH161: =SUM(AK161:AM161)+AF161 -> 26.5 | AK161: =ROUND(AD161/(1-VLOOKUP(AG161,Group,2,FALSE)),2) -> 26.5 | AL161: =IF(VLOOKUP(AG161,Group,5,FALSE)="YES",VLOOKUP(ROUND(ROUND(AK161,1)-AK161,2),Round,2,FALSE)+VLOOKUP(AG161,Group,6,FALSE),0) -> 0 | AM161: =IF(VLOOKUP(AG161,Group,7,FALSE)="",0,ROUND(AK161-0.04999,1)-AK161+AN161) -> 0 | AN161: =IF(VLOOKUP(AG161,Group,7,FALSE)="","",VLOOKUP(AG161,Group,7,FALSE)) ->  | AP161: X
B163: Stock - Trim | E163: 4" x 24" | G163: Bullnose | J163: Polished (Bright) | P163: 14 PCS/CTN | S163: =IF(Suggested="Yes",AB163,AH163) -> 51.65 | T163: EA | U163: =+Instructions!$B$3 -> D | X163: =+Instructions!$C$22 -> 0 | Y163: =ROUND($AB163*(1-X163)+0.004999,2) -> 51.65 | AB163: 51.65 | AC163: =+X163 -> 0 | AD163: =+Y163 -> 51.65 | AE163: =(AH163-AD163)/AH163 -> 0 | AG163: 5 | AH163: =SUM(AK163:AM163)+AF163 -> 51.65 | AK163: =ROUND(AD163/(1-VLOOKUP(AG163,Group,2,FALSE)),2) -> 51.65 | AL163: =IF(VLOOKUP(AG163,Group,5,FALSE)="YES",VLOOKUP(ROUND(ROUND(AK163,1)-AK163,2),Round,2,FALSE)+VLOOKUP(AG163,Group,6,FALSE),0) -> 0 | AM163: =IF(VLOOKUP(AG163,Group,7,FALSE)="",0,ROUND(AK163-0.04999,1)-AK163+AN163) -> 0 | AN163: =IF(VLOOKUP(AG163,Group,7,FALSE)="","",VLOOKUP(AG163,Group,7,FALSE)) ->  | AP163: X
B165: Stock - Trim | E165: 12" x 24" | G165: Stair Tread | J165: Polished (Bright) | P165: 8 PCS/CTN | S165: =IF(Suggested="Yes",AB165,AH165) -> 132.75 | T165: EA | U165: =+Instructions!$B$3 -> D | X165: =+Instructions!$C$22 -> 0 | Y165: =ROUND($AB165*(1-X165)+0.004999,2) -> 132.75 | AB165: 132.75 | AC165: =+X165 -> 0 | AD165: =+Y165 -> 132.75 | AE165: =(AH165-AD165)/AH165 -> 0 | AG165: 5 | AH165: =SUM(AK165:AM165)+AF165 -> 132.75 | AK165: =ROUND(AD165/(1-VLOOKUP(AG165,Group,2,FALSE)),2) -> 132.75 | AL165: =IF(VLOOKUP(AG165,Group,5,FALSE)="YES",VLOOKUP(ROUND(ROUND(AK165,1)-AK165,2),Round,2,FALSE)+VLOOKUP(AG165,Group,6,FALSE),0) -> 0 | AM165: =IF(VLOOKUP(AG165,Group,7,FALSE)="",0,ROUND(AK165-0.04999,1)-AK165+AN165) -> 0 | AN165: =IF(VLOOKUP(AG165,Group,7,FALSE)="","",VLOOKUP(AG165,Group,7,FALSE)) ->  | AP165: X
D167: Colors: | E167: Breccia Mirabile Calacatta Bellissimo Pietra Grey Premium White | AP167: X
B169: Field Tile | E169: 24" x 24" | G169: Field | J169: Satin | P169: 15.50 SF/CTN | S169: =IF(Suggested="Yes",AB169,AH169) -> 25.3 | T169: SF | U169: =+Instructions!$B$3 -> D | X169: =+Instructions!$C$22 -> 0 | Y169: =ROUND($AB169*(1-X169)+0.004999,2) -> 25.3 | AB169: 25.3 | AC169: =+X169 -> 0 | AD169: =+Y169 -> 25.3 | AE169: =(AH169-AD169)/AH169 -> 0 | AG169: 1 | AH169: =SUM(AK169:AM169)+AF169 -> 25.3 | AK169: =ROUND(AD169/(1-VLOOKUP(AG169,Group,2,FALSE)),2) -> 25.3 | AL169: =IF(VLOOKUP(AG169,Group,5,FALSE)="YES",VLOOKUP(ROUND(ROUND(AK169,1)-AK169,2),Round,2,FALSE)+VLOOKUP(AG169,Group,6,FALSE),0) -> 0 | AM169: =IF(VLOOKUP(AG169,Group,7,FALSE)="",0,ROUND(AK169-0.04999,1)-AK169+AN169) -> 0 | AN169: =IF(VLOOKUP(AG169,Group,7,FALSE)="","",VLOOKUP(AG169,Group,7,FALSE)) ->  | AP169: X
B170: Field Tile | E170: 24" x 48" | G170: Field | J170: Satin | P170: 15.50 SF/CTN | S170: =IF(Suggested="Yes",AB170,AH170) -> 26.5 | T170: SF | U170: =+Instructions!$B$3 -> D | X170: =+Instructions!$C$22 -> 0 | Y170: =ROUND($AB170*(1-X170)+0.004999,2) -> 26.5 | AB170: 26.5 | AC170: =+X170 -> 0 | AD170: =+Y170 -> 26.5 | AE170: =(AH170-AD170)/AH170 -> 0 | AG170: 1 | AH170: =SUM(AK170:AM170)+AF170 -> 26.5 | AK170: =ROUND(AD170/(1-VLOOKUP(AG170,Group,2,FALSE)),2) -> 26.5 | AL170: =IF(VLOOKUP(AG170,Group,5,FALSE)="YES",VLOOKUP(ROUND(ROUND(AK170,1)-AK170,2),Round,2,FALSE)+VLOOKUP(AG170,Group,6,FALSE),0) -> 0 | AM170: =IF(VLOOKUP(AG170,Group,7,FALSE)="",0,ROUND(AK170-0.04999,1)-AK170+AN170) -> 0 | AN170: =IF(VLOOKUP(AG170,Group,7,FALSE)="","",VLOOKUP(AG170,Group,7,FALSE)) ->  | AP170: X
B172: Stock - Trim | E172: 4" x 24" | G172: Bullnose | J172: Satin | P172: 14 PCS/CTN | S172: =IF(Suggested="Yes",AB172,AH172) -> 51.65 | T172: EA | U172: =+Instructions!$B$3 -> D | X172: =+Instructions!$C$22 -> 0 | Y172: =ROUND($AB172*(1-X172)+0.004999,2) -> 51.65 | AB172: 51.65 | AC172: =+X172 -> 0 | AD172: =+Y172 -> 51.65 | AE172: =(AH172-AD172)/AH172 -> 0 | AG172: 5 | AH172: =SUM(AK172:AM172)+AF172 -> 51.65 | AK172: =ROUND(AD172/(1-VLOOKUP(AG172,Group,2,FALSE)),2) -> 51.65 | AL172: =IF(VLOOKUP(AG172,Group,5,FALSE)="YES",VLOOKUP(ROUND(ROUND(AK172,1)-AK172,2),Round,2,FALSE)+VLOOKUP(AG172,Group,6,FALSE),0) -> 0 | AM172: =IF(VLOOKUP(AG172,Group,7,FALSE)="",0,ROUND(AK172-0.04999,1)-AK172+AN172) -> 0 | AN172: =IF(VLOOKUP(AG172,Group,7,FALSE)="","",VLOOKUP(AG172,Group,7,FALSE)) ->  | AP172: X
B174: Stock - Trim | E174: 12" x 24" | G174: Stair Tread | J174: Satin | P174: 8 PCS/CTN | S174: =IF(Suggested="Yes",AB174,AH174) -> 132.75 | T174: EA | U174: =+Instructions!$B$3 -> D | X174: =+Instructions!$C$22 -> 0 | Y174: =ROUND($AB174*(1-X174)+0.004999,2) -> 132.75 | AB174: 132.75 | AC174: =+X174 -> 0 | AD174: =+Y174 -> 132.75 | AE174: =(AH174-AD174)/AH174 -> 0 | AG174: 5 | AH174: =SUM(AK174:AM174)+AF174 -> 132.75 | AK174: =ROUND(AD174/(1-VLOOKUP(AG174,Group,2,FALSE)),2) -> 132.75 | AL174: =IF(VLOOKUP(AG174,Group,5,FALSE)="YES",VLOOKUP(ROUND(ROUND(AK174,1)-AK174,2),Round,2,FALSE)+VLOOKUP(AG174,Group,6,FALSE),0) -> 0 | AM174: =IF(VLOOKUP(AG174,Group,7,FALSE)="",0,ROUND(AK174-0.04999,1)-AK174+AN174) -> 0 | AN174: =IF(VLOOKUP(AG174,Group,7,FALSE)="","",VLOOKUP(AG174,Group,7,FALSE)) ->  | AP174: X
D176: Notes: | E176: a) Colors Arabescato Orobico, Glam Bronze an Noble Ecru Special Order Only. Extended Lead Time of approximately 8-10 weeks.
E177: b) Special Order Only. Extended Lead Time of approximately 8-10 weeks.
E178: c) Not available in colors Arabescato Orobico, Glam Bronze and Taxos.
E179: d) Packaging changing from 15.50 SF/CTN to 11.63 SF/CTN as inventory with old packaging is depleted.
E180: e) Not available in color White Beauty.
C182: MAXIMUM - Large Panel Porcelain | R182: Item # Lookup: | S182: FIMA | AP182: X
K184: Large Panel Packaging & Freight Charges | AP184: X
D186: Large Panel Porcelain will also involve additional packaging & freight charges depending on sizes and quantities. See below for these additional charges. 120" panels are always subject to additional freight charges based on project quantity.
F188: Size | K188: Total Pieces per Crate | N188: Description
B190: Stock - Field Tile | G190: 30" x 15" x 6mm | K190: 264 | N190: Big Crate | S190: =IF(Suggested="Yes",AB190,AH190) -> 144 | T190: EA | U190: =+Instructions!$B$3 -> D | X190: =+Instructions!$C$22 -> 0 | Y190: =ROUND($AB190*(1-X190)+0.004999,2) -> 144 | AB190: 144 | AC190: =+X190 -> 0 | AD190: =+Y190 -> 144 | AE190: =(AH190-AD190)/AH190 -> 0 | AG190: 4 | AH190: =SUM(AK190:AM190)+AF190 -> 144 | AK190: =ROUND(AD190/(1-VLOOKUP(AG190,Group,2,FALSE)),2) -> 144 | AL190: =IF(VLOOKUP(AG190,Group,5,FALSE)="YES",VLOOKUP(ROUND(ROUND(AK190,1)-AK190,2),Round,2,FALSE)+VLOOKUP(AG190,Group,6,FALSE),0) -> 0 | AM190: =IF(VLOOKUP(AG190,Group,7,FALSE)="",0,ROUND(AK190-0.04999,1)-AK190+AN190) -> 0 | AN190: =IF(VLOOKUP(AG190,Group,7,FALSE)="","",VLOOKUP(AG190,Group,7,FALSE)) ->  | AP190: X
B191: Stock - Field Tile | G191: 30" x 30" x 6mm | K191: 114 | N191: Big Crate | S191: 144 | T191: EA | U191: =+Instructions!$B$3 -> D | X191: =+Instructions!$C$22 -> 0 | Y191: 144 | AB191: 144 | AC191: 0 | AD191: 144 | AE191: 0 | AG191: 4 | AH191: 144 | AK191: 144 | AL191: 0 | AM191: 0 | AP191: X
B192: Stock - Field Tile | G192: 40" x 40" x 6mm | K192: 52 | N192: Big Crate | S192: 144 | T192: EA | U192: =+Instructions!$B$3 -> D | X192: =+Instructions!$C$22 -> 0 | Y192: 144 | AB192: 144 | AC192: 0 | AD192: 144 | AE192: 0 | AG192: 4 | AH192: 144 | AK192: 144 | AL192: 0 | AM192: 0 | AP192: X
B193: Stock - Field Tile | G193: 60" x 30" x 6mm | K193: 52 | N193: Big Crate | S193: 144 | T193: EA | U193: =+Instructions!$B$3 -> D | X193: =+Instructions!$C$22 -> 0 | Y193: 144 | AB193: 144 | AC193: 0 | AD193: 144 | AE193: 0 | AG193: 4 | AH193: 144 | AK193: 144 | AL193: 0 | AM193: 0 | AP193: X
B194: Stock - Field Tile | G194: 60" x 40" x 6mm | K194: 40 | N194: Big Crate | S194: 144 | T194: EA | U194: =+Instructions!$B$3 -> D | X194: =+Instructions!$C$22 -> 0 | Y194: 144 | AB194: 144 | AC194: 0 | AD194: 144 | AE194: 0 | AG194: 4 | AH194: 144 | AK194: 144 | AL194: 0 | AM194: 0 | AP194: X
B195: Stock - Field Tile | G195: 60" x 60" x 6mm | K195: 24 | N195: Crate | S195: 240 | T195: EA | U195: =+Instructions!$B$3 -> D | X195: =+Instructions!$C$22 -> 0 | Y195: 240 | AB195: 240 | AC195: 0 | AD195: 240 | AE195: 0 | AG195: 4 | AH195: 240 | AK195: 240 | AL195: 0 | AM195: 0 | AP195: X
B196: Stock - Field Tile | G196: 96" x 8" x 6mm | K196: 135 | N196: Big Crate | S196: 144 | T196: EA | U196: =+Instructions!$B$3 -> D | X196: =+Instructions!$C$22 -> 0 | Y196: 144 | AB196: 144 | AC196: 0 | AD196: 144 | AE196: 0 | AG196: 4 | AH196: 144 | AK196: 144 | AL196: 0 | AM196: 0 | AP196: X
B197: Stock - Field Tile | G197: 120" x 40" x 6mm | K197: 50 | N197: A-Frame | S197: 546 | T197: EA | U197: =+Instructions!$B$3 -> D | X197: =+Instructions!$C$22 -> 0 | Y197: 546 | AB197: 546 | AC197: 0 | AD197: 546 | AE197: 0 | AG197: 4 | AH197: 546 | AK197: 546 | AL197: 0 | AM197: 0 | AP197: X
B198: Stock - Field Tile | G198: 120" x 40" x 6mm | K198: 16 | N198: Crate | S198: 240 | T198: EA | U198: =+Instructions!$B$3 -> D | X198: =+Instructions!$C$22 -> 0 | Y198: 240 | AB198: 240 | AC198: 0 | AD198: 240 | AE198: 0 | AG198: 4 | AH198: 240 | AK198: 240 | AL198: 0 | AM198: 0 | AP198: X
B199: Stock - Field Tile | G199: 120" x 60" x 6mm | K199: 12 | N199: Crate | S199: =IF(Suggested="Yes",AB199,AH199) -> 288 | T199: EA | U199: =+Instructions!$B$3 -> D | X199: =+Instructions!$C$22 -> 0 | Y199: =ROUND($AB199*(1-X199)+0.004999,2) -> 288 | AB199: 288 | AC199: =+X199 -> 0 | AD199: =+Y199 -> 288 | AE199: =(AH199-AD199)/AH199 -> 0 | AG199: 4 | AH199: =SUM(AK199:AM199)+AF199 -> 288 | AK199: =ROUND(AD199/(1-VLOOKUP(AG199,Group,2,FALSE)),2) -> 288 | AL199: =IF(VLOOKUP(AG199,Group,5,FALSE)="YES",VLOOKUP(ROUND(ROUND(AK199,1)-AK199,2),Round,2,FALSE)+VLOOKUP(AG199,Group,6,FALSE),0) -> 0 | AM199: =IF(VLOOKUP(AG199,Group,7,FALSE)="",0,ROUND(AK199-0.04999,1)-AK199+AN199) -> 0 | AN199: =IF(VLOOKUP(AG199,Group,7,FALSE)="","",VLOOKUP(AG199,Group,7,FALSE)) ->  | AP199: X
B200: Stock - Field Tile | G200: 120" x 60" x 6mm | K200: 25 to 50 | N200: A-Frame | S200: 546 | T200: EA | U200: =+Instructions!$B$3 -> D | X200: =+Instructions!$C$22 -> 0 | Y200: 546 | AB200: 546 | AC200: 0 | AD200: 546 | AE200: 0 | AG200: 4 | AH200: 546 | AK200: 546 | AL200: 0 | AM200: 0 | AP200: X
C202: continued on next page
C203: MAXIMUM - Large Panel Porcelain - continued | AP203: X
D205: Large Panel Porcelain will also involve additional packaging & freight charges depending on sizes and quantities. See Page 2 for these additional charges. 120" panels are always subject to additional freight charges based on project quantity.
C207: AGATA MAXIMUM | R207: Item # Lookup: | S207: FIMAAG
D209: Colors: | E209: Atena Black Blu | AP209: X
B211: Stock - Field Tile | E211: 120" x 60" x 6mm | G211: Field | J211: Polished (Bright) | P211: 48.44 SF/CTN | S211: =IF(Suggested="Yes",AB211,AH211) -> 59.05 | T211: SF | U211: =+Instructions!$B$3 -> D | X211: =+Instructions!$C$22 -> 0 | Y211: =ROUND($AB211*(1-X211)+0.004999,2) -> 59.05 | AB211: 59.05 | AC211: =+X211 -> 0 | AD211: =+Y211 -> 59.05 | AE211: =(AH211-AD211)/AH211 -> 0 | AG211: 4 | AH211: =SUM(AK211:AM211)+AF211 -> 59.05 | AK211: =ROUND(AD211/(1-VLOOKUP(AG211,Group,2,FALSE)),2) -> 59.05 | AL211: =IF(VLOOKUP(AG211,Group,5,FALSE)="YES",VLOOKUP(ROUND(ROUND(AK211,1)-AK211,2),Round,2,FALSE)+VLOOKUP(AG211,Group,6,FALSE),0) -> 0 | AM211: =IF(VLOOKUP(AG211,Group,7,FALSE)="",0,ROUND(AK211-0.04999,1)-AK211+AN211) -> 0 | AN211: =IF(VLOOKUP(AG211,Group,7,FALSE)="","",VLOOKUP(AG211,Group,7,FALSE)) ->  | AP211: X
C213: AION MAXIMUM | R213: Item # Lookup: | S213: FIMAAI
D215: Colors: | E215: Black Grey White | AP215: X
B217: Stock - Field Tile | E217: 30" x 15" x 6mm | G217: Field | J217: Honed | P217: 18.17 SF/CTN | S217: =IF(Suggested="Yes",AB217,AH217) -> 23.4 | T217: SF | U217: =+Instructions!$B$3 -> D | X217: =+Instructions!$C$22 -> 0 | Y217: =ROUND($AB217*(1-X217)+0.004999,2) -> 23.4 | AB217: 23.4 | AC217: =+X217 -> 0 | AD217: 23.4 | AE217: =(AH217-AD217)/AH217 -> 0 | AG217: 4 | AH217: =SUM(AK217:AM217)+AF217 -> 23.4 | AK217: =ROUND(AD217/(1-VLOOKUP(AG217,Group,2,FALSE)),2) -> 23.4 | AL217: =IF(VLOOKUP(AG217,Group,5,FALSE)="YES",VLOOKUP(ROUND(ROUND(AK217,1)-AK217,2),Round,2,FALSE)+VLOOKUP(AG217,Group,6,FALSE),0) -> 0 | AM217: =IF(VLOOKUP(AG217,Group,7,FALSE)="",0,ROUND(AK217-0.04999,1)-AK217+AN217) -> 0 | AN217: =IF(VLOOKUP(AG217,Group,7,FALSE)="","",VLOOKUP(AG217,Group,7,FALSE)) ->  | AP217: X
B218: Stock - Field Tile | E218: 30" x 30" x 6mm | G218: Field | J218: Honed | P218: 18.17 SF/CTN | S218: =IF(Suggested="Yes",AB218,AH218) -> 23.4 | T218: SF | U218: =+Instructions!$B$3 -> D | X218: =+Instructions!$C$22 -> 0 | Y218: =ROUND($AB218*(1-X218)+0.004999,2) -> 23.4 | AB218: 23.4 | AC218: 0 | AD218: 23.4 | AE218: =(AH218-AD218)/AH218 -> 0 | AG218: 4 | AH218: =SUM(AK218:AM218)+AF218 -> 23.4 | AK218: =ROUND(AD218/(1-VLOOKUP(AG218,Group,2,FALSE)),2) -> 23.4 | AL218: =IF(VLOOKUP(AG218,Group,5,FALSE)="YES",VLOOKUP(ROUND(ROUND(AK218,1)-AK218,2),Round,2,FALSE)+VLOOKUP(AG218,Group,6,FALSE),0) -> 0 | AM218: =IF(VLOOKUP(AG218,Group,7,FALSE)="",0,ROUND(AK218-0.04999,1)-AK218+AN218) -> 0 | AN218: =IF(VLOOKUP(AG218,Group,7,FALSE)="","",VLOOKUP(AG218,Group,7,FALSE)) ->  | AP218: X
B219: Stock - Field Tile | E219: 60" x 30" x 6mm | G219: Field | J219: Honed | P219: 24.22 SF/CTN | S219: =IF(Suggested="Yes",AB219,AH219) -> 28.85 | T219: SF | U219: =+Instructions!$B$3 -> D | X219: =+Instructions!$C$22 -> 0 | Y219: =ROUND($AB219*(1-X219)+0.004999,2) -> 28.85 | AB219: 28.85 | AC219: 0 | AD219: 28.85 | AE219: =(AH219-AD219)/AH219 -> 0 | AG219: 4 | AH219: =SUM(AK219:AM219)+AF219 -> 28.85 | AK219: =ROUND(AD219/(1-VLOOKUP(AG219,Group,2,FALSE)),2) -> 28.85 | AL219: =IF(VLOOKUP(AG219,Group,5,FALSE)="YES",VLOOKUP(ROUND(ROUND(AK219,1)-AK219,2),Round,2,FALSE)+VLOOKUP(AG219,Group,6,FALSE),0) -> 0 | AM219: =IF(VLOOKUP(AG219,Group,7,FALSE)="",0,ROUND(AK219-0.04999,1)-AK219+AN219) -> 0 | AN219: =IF(VLOOKUP(AG219,Group,7,FALSE)="","",VLOOKUP(AG219,Group,7,FALSE)) ->  | AP219: X
B220: Stock - Field Tile | E220: 60" x 60" x 6mm | G220: Field | J220: Honed | P220: 24.22 SF/CTN | S220: =IF(Suggested="Yes",AB220,AH220) -> 31.75 | T220: SF | U220: =+Instructions!$B$3 -> D | X220: =+Instructions!$C$22 -> 0 | Y220: =ROUND($AB220*(1-X220)+0.004999,2) -> 31.75 | AB220: 31.75 | AC220: 0 | AD220: 31.75 | AE220: =(AH220-AD220)/AH220 -> 0 | AG220: 4 | AH220: =SUM(AK220:AM220)+AF220 -> 31.75 | AK220: =ROUND(AD220/(1-VLOOKUP(AG220,Group,2,FALSE)),2) -> 31.75 | AL220: =IF(VLOOKUP(AG220,Group,5,FALSE)="YES",VLOOKUP(ROUND(ROUND(AK220,1)-AK220,2),Round,2,FALSE)+VLOOKUP(AG220,Group,6,FALSE),0) -> 0 | AM220: =IF(VLOOKUP(AG220,Group,7,FALSE)="",0,ROUND(AK220-0.04999,1)-AK220+AN220) -> 0 | AN220: =IF(VLOOKUP(AG220,Group,7,FALSE)="","",VLOOKUP(AG220,Group,7,FALSE)) ->  | AP220: X
B221: Stock - Field Tile | E221: 120" x 60" x 6mm | G221: Field | J221: Honed | P221: 48.44 SF/CTN | S221: =IF(Suggested="Yes",AB221,AH221) -> 32.9 | T221: SF | U221: =+Instructions!$B$3 -> D | X221: =+Instructions!$C$22 -> 0 | Y221: =ROUND($AB221*(1-X221)+0.004999,2) -> 32.9 | AB221: 32.9 | AC221: 0 | AD221: 32.9 | AE221: =(AH221-AD221)/AH221 -> 0 | AG221: 4 | AH221: =SUM(AK221:AM221)+AF221 -> 32.9 | AK221: =ROUND(AD221/(1-VLOOKUP(AG221,Group,2,FALSE)),2) -> 32.9 | AL221: =IF(VLOOKUP(AG221,Group,5,FALSE)="YES",VLOOKUP(ROUND(ROUND(AK221,1)-AK221,2),Round,2,FALSE)+VLOOKUP(AG221,Group,6,FALSE),0) -> 0 | AM221: =IF(VLOOKUP(AG221,Group,7,FALSE)="",0,ROUND(AK221-0.04999,1)-AK221+AN221) -> 0 | AN221: =IF(VLOOKUP(AG221,Group,7,FALSE)="","",VLOOKUP(AG221,Group,7,FALSE)) ->  | AP221: X
C223: ASTER MAXIMUM | R223: Item # Lookup: | S223: FIMAAS
D225: Colors: | E225: Mercury Moon Venus | AP225: X
B227: Stock - Field Tile | E227: 40" x 40" x 6mm | G227: Field | J227: Honed | P227: 21.53 SF/CTN | S227: =IF(Suggested="Yes",AB227,AH227) -> 22.2 | T227: SF | U227: =+Instructions!$B$3 -> D | X227: =+Instructions!$C$22 -> 0 | Y227: =ROUND($AB227*(1-X227)+0.004999,2) -> 22.2 | AB227: 22.2 | AC227: =+X227 -> 0 | AD227: 22.2 | AE227: =(AH227-AD227)/AH227 -> 0 | AG227: 4 | AH227: =SUM(AK227:AM227)+AF227 -> 22.2 | AK227: =ROUND(AD227/(1-VLOOKUP(AG227,Group,2,FALSE)),2) -> 22.2 | AL227: =IF(VLOOKUP(AG227,Group,5,FALSE)="YES",VLOOKUP(ROUND(ROUND(AK227,1)-AK227,2),Round,2,FALSE)+VLOOKUP(AG227,Group,6,FALSE),0) -> 0 | AM227: =IF(VLOOKUP(AG227,Group,7,FALSE)="",0,ROUND(AK227-0.04999,1)-AK227+AN227) -> 0 | AN227: =IF(VLOOKUP(AG227,Group,7,FALSE)="","",VLOOKUP(AG227,Group,7,FALSE)) ->  | AP227: X
B228: Stock - Field Tile | E228: 60" x 40" x 6mm | G228: Field | J228: Honed | P228: 16.15 SF/CTN | S228: =IF(Suggested="Yes",AB228,AH228) -> 23.05 | T228: SF | U228: =+Instructions!$B$3 -> D | X228: =+Instructions!$C$22 -> 0 | Y228: =ROUND($AB228*(1-X228)+0.004999,2) -> 23.05 | AB228: 23.05 | AC228: 0 | AD228: 23.05 | AE228: =(AH228-AD228)/AH228 -> 0 | AG228: 4 | AH228: =SUM(AK228:AM228)+AF228 -> 23.05 | AK228: =ROUND(AD228/(1-VLOOKUP(AG228,Group,2,FALSE)),2) -> 23.05 | AL228: =IF(VLOOKUP(AG228,Group,5,FALSE)="YES",VLOOKUP(ROUND(ROUND(AK228,1)-AK228,2),Round,2,FALSE)+VLOOKUP(AG228,Group,6,FALSE),0) -> 0 | AM228: =IF(VLOOKUP(AG228,Group,7,FALSE)="",0,ROUND(AK228-0.04999,1)-AK228+AN228) -> 0 | AN228: =IF(VLOOKUP(AG228,Group,7,FALSE)="","",VLOOKUP(AG228,Group,7,FALSE)) ->  | AP228: X
B229: Stock - Field Tile | E229: 120" x 40" x 6mm | G229: Field | J229: Honed | P229: 32.29 SF/CTN | S229: =IF(Suggested="Yes",AB229,AH229) -> 23.9 | T229: SF | U229: =+Instructions!$B$3 -> D | X229: =+Instructions!$C$22 -> 0 | Y229: =ROUND($AB229*(1-X229)+0.004999,2) -> 23.9 | AB229: 23.9 | AC229: 0 | AD229: 23.9 | AE229: =(AH229-AD229)/AH229 -> 0 | AG229: 4 | AH229: =SUM(AK229:AM229)+AF229 -> 23.9 | AK229: =ROUND(AD229/(1-VLOOKUP(AG229,Group,2,FALSE)),2) -> 23.9 | AL229: =IF(VLOOKUP(AG229,Group,5,FALSE)="YES",VLOOKUP(ROUND(ROUND(AK229,1)-AK229,2),Round,2,FALSE)+VLOOKUP(AG229,Group,6,FALSE),0) -> 0 | AM229: =IF(VLOOKUP(AG229,Group,7,FALSE)="",0,ROUND(AK229-0.04999,1)-AK229+AN229) -> 0 | AN229: =IF(VLOOKUP(AG229,Group,7,FALSE)="","",VLOOKUP(AG229,Group,7,FALSE)) ->  | AP229: X
C231: DATAUNI MAXIMUM | R231: Item # Lookup: | S231: FIMADA
D233: Colors: | E233: Uniice Unipepper | AP233: X
B235: Stock - Field Tile | E235: 30" x 15" x 6mm | G235: Field | J235: Honed | P235: 18.17 SF/CTN | S235: =IF(Suggested="Yes",AB235,AH235) -> 35.35 | T235: SF | U235: =+Instructions!$B$3 -> D | X235: =+Instructions!$C$22 -> 0 | Y235: =ROUND($AB235*(1-X235)+0.004999,2) -> 35.35 | AB235: 35.35 | AC235: =+X235 -> 0 | AD235: 35.35 | AE235: =(AH235-AD235)/AH235 -> 0 | AG235: 4 | AH235: =SUM(AK235:AM235)+AF235 -> 35.35 | AK235: =ROUND(AD235/(1-VLOOKUP(AG235,Group,2,FALSE)),2) -> 35.35 | AL235: =IF(VLOOKUP(AG235,Group,5,FALSE)="YES",VLOOKUP(ROUND(ROUND(AK235,1)-AK235,2),Round,2,FALSE)+VLOOKUP(AG235,Group,6,FALSE),0) -> 0 | AM235: =IF(VLOOKUP(AG235,Group,7,FALSE)="",0,ROUND(AK235-0.04999,1)-AK235+AN235) -> 0 | AN235: =IF(VLOOKUP(AG235,Group,7,FALSE)="","",VLOOKUP(AG235,Group,7,FALSE)) ->  | AP235: X
B236: Stock - Field Tile | E236: 30" x 30" x 6mm | G236: Field | J236: Honed | P236: 18.17 SF/CTN | S236: 35.35 | T236: SF | U236: =+Instructions!$B$3 -> D | X236: =+Instructions!$C$22 -> 0 | Y236: 35.35 | AB236: 35.35 | AC236: 0 | AD236: 35.35 | AE236: 0 | AG236: 4 | AH236: 35.35 | AK236: 35.35 | AL236: 0 | AM236: 0 | AP236: X
B237: Stock - Field Tile | E237: 40" x 40" x 6mm | G237: Field | J237: Honed | P237: 21.53 SF/CTN | S237: 28.95 | T237: SF | U237: =+Instructions!$B$3 -> D | X237: =+Instructions!$C$22 -> 0 | Y237: 28.95 | AB237: 28.95 | AC237: =+X237 -> 0 | AD237: =+Y237 -> 28.95 | AE237: 0 | AG237: 4 | AH237: 28.95 | AK237: 28.95 | AL237: 0 | AM237: 0 | AP237: X
B238: Stock - Field Tile | E238: 60" x 30" x 6mm | G238: Field | J238: Honed | P238: 24.22 SF/CTN | S238: 37.4 | T238: SF | U238: =+Instructions!$B$3 -> D | X238: =+Instructions!$C$22 -> 0 | Y238: 37.4 | AB238: 37.4 | AC238: 0 | AD238: 37.4 | AE238: 0 | AG238: 4 | AH238: 37.4 | AK238: 37.4 | AL238: 0 | AM238: 0 | AP238: X
B239: Stock - Field Tile | E239: 60" x 40" x 6mm | G239: Field | J239: Honed | P239: 16.15 SF/CTN | S239: 34.8 | T239: SF | U239: =+Instructions!$B$3 -> D | X239: =+Instructions!$C$22 -> 0 | Y239: 34.8 | AB239: 34.8 | AC239: =+X239 -> 0 | AD239: =+Y239 -> 34.8 | AE239: 0 | AG239: 4 | AH239: 34.8 | AK239: 34.8 | AL239: 0 | AM239: 0 | AP239: X
B240: Stock - Field Tile | E240: 60" x 60" x 6mm | G240: Field | J240: Honed | P240: 24.22 SF/CTN | S240: 40.65 | T240: SF | U240: =+Instructions!$B$3 -> D | X240: =+Instructions!$C$22 -> 0 | Y240: 40.65 | AB240: 40.65 | AC240: 0 | AD240: 40.65 | AE240: 0 | AG240: 4 | AH240: 40.65 | AK240: 40.65 | AL240: 0 | AM240: 0 | AP240: X
B241: Stock - Field Tile | E241: 120" x 40" x 6mm | G241: Field | J241: Honed | P241: 32.29 SF/CTN | S241: 34 | T241: SF | U241: =+Instructions!$B$3 -> D | X241: =+Instructions!$C$22 -> 0 | Y241: 34 | AB241: 34 | AC241: =+X241 -> 0 | AD241: =+Y241 -> 34 | AE241: 0 | AG241: 4 | AH241: 34 | AK241: 34 | AL241: 0 | AM241: 0 | AP241: X
B242: Stock - Field Tile | E242: 120" x 60" x 6mm | G242: Field | J242: Honed | P242: 48.44 SF/CTN | S242: 42.3 | T242: SF | U242: =+Instructions!$B$3 -> D | X242: =+Instructions!$C$22 -> 0 | Y242: 42.3 | AB242: 42.3 | AC242: =+X242 -> 0 | AD242: =+Y242 -> 42.3 | AE242: 0 | AG242: 4 | AH242: 42.3 | AK242: 42.3 | AL242: 0 | AM242: 0 | AP242: X
B244: Stock - Field Tile | E244: 30" x 15" x 6mm | G244: Field | J244: Polished (Bright) | P244: 18.17 SF/CTN | S244: =IF(Suggested="Yes",AB244,AH244) -> 40.55 | T244: SF | U244: =+Instructions!$B$3 -> D | X244: =+Instructions!$C$22 -> 0 | Y244: =ROUND($AB244*(1-X244)+0.004999,2) -> 40.55 | AB244: 40.55 | AC244: =+X244 -> 0 | AD244: 40.55 | AE244: =(AH244-AD244)/AH244 -> 0 | AG244: 4 | AH244: =SUM(AK244:AM244)+AF244 -> 40.55 | AK244: =ROUND(AD244/(1-VLOOKUP(AG244,Group,2,FALSE)),2) -> 40.55 | AL244: =IF(VLOOKUP(AG244,Group,5,FALSE)="YES",VLOOKUP(ROUND(ROUND(AK244,1)-AK244,2),Round,2,FALSE)+VLOOKUP(AG244,Group,6,FALSE),0) -> 0 | AM244: =IF(VLOOKUP(AG244,Group,7,FALSE)="",0,ROUND(AK244-0.04999,1)-AK244+AN244) -> 0 | AN244: =IF(VLOOKUP(AG244,Group,7,FALSE)="","",VLOOKUP(AG244,Group,7,FALSE)) ->  | AP244: X
B245: Stock - Field Tile | E245: 30" x 30" x 6mm | G245: Field | J245: Polished (Bright) | P245: 18.17 SF/CTN | S245: 40.55 | T245: SF | U245: =+Instructions!$B$3 -> D | X245: =+Instructions!$C$22 -> 0 | Y245: 40.55 | AB245: 40.55 | AC245: 0 | AD245: 40.55 | AE245: 0 | AG245: 4 | AH245: 40.55 | AK245: 40.55 | AL245: 0 | AM245: 0 | AP245: X
B246: Stock - Field Tile | E246: 40" x 40" x 6mm | G246: Field | J246: Polished (Bright) | P246: 21.53 SF/CTN | S246: 33.6 | T246: SF | U246: =+Instructions!$B$3 -> D | X246: =+Instructions!$C$22 -> 0 | Y246: 33.6 | AB246: 33.6 | AC246: =+X246 -> 0 | AD246: =+Y246 -> 33.6 | AE246: 0 | AG246: 4 | AH246: 33.6 | AK246: 33.6 | AL246: 0 | AM246: 0 | AP246: X
B247: Stock - Field Tile | E247: 60" x 30" x 6mm | G247: Field | J247: Polished (Bright) | P247: 24.22 SF/CTN | S247: 42.6 | T247: SF | U247: =+Instructions!$B$3 -> D | X247: =+Instructions!$C$22 -> 0 | Y247: 42.6 | AB247: 42.6 | AC247: 0 | AD247: 42.6 | AE247: 0 | AG247: 4 | AH247: 42.6 | AK247: 42.6 | AL247: 0 | AM247: 0 | AP247: X
B248: Stock - Field Tile | E248: 60" x 40" x 6mm | G248: Field | J248: Polished (Bright) | P248: 16.15 SF/CTN | S248: 39.75 | T248: SF | U248: =+Instructions!$B$3 -> D | X248: =+Instructions!$C$22 -> 0 | Y248: 39.75 | AB248: 39.75 | AC248: =+X248 -> 0 | AD248: =+Y248 -> 39.75 | AE248: 0 | AG248: 4 | AH248: 39.75 | AK248: 39.75 | AL248: 0 | AM248: 0 | AP248: X
B249: Stock - Field Tile | E249: 60" x 60" x 6mm | G249: Field | J249: Polished (Bright) | P249: 24.22 SF/CTN | S249: 46.1 | T249: SF | U249: =+Instructions!$B$3 -> D | X249: =+Instructions!$C$22 -> 0 | Y249: 46.1 | AB249: 46.1 | AC249: 0 | AD249: 46.1 | AE249: 0 | AG249: 4 | AH249: 46.1 | AK249: 46.1 | AL249: 0 | AM249: 0 | AP249: X
B250: Stock - Field Tile | E250: 120" x 40" x 6mm | G250: Field | J250: Polished (Bright) | P250: 32.29 SF/CTN | S250: 38.95 | T250: SF | U250: =+Instructions!$B$3 -> D | X250: =+Instructions!$C$22 -> 0 | Y250: 38.95 | AB250: 38.95 | AC250: =+X250 -> 0 | AD250: =+Y250 -> 38.95 | AE250: 0 | AG250: 4 | AH250: 38.95 | AK250: 38.95 | AL250: 0 | AM250: 0 | AP250: X
B251: Stock - Field Tile | E251: 120" x 60" x 6mm | G251: Field | J251: Polished (Bright) | P251: 48.44 SF/CTN | S251: 48.8 | T251: SF | U251: =+Instructions!$B$3 -> D | X251: =+Instructions!$C$22 -> 0 | Y251: 48.8 | AB251: 48.8 | AC251: =+X251 -> 0 | AD251: =+Y251 -> 48.8 | AE251: 0 | AG251: 4 | AH251: 48.8 | AK251: 48.8 | AL251: 0 | AM251: 0 | AP251: X
C253: FJORD MAXIMUM | R253: Item # Lookup: | S253: FIMAFJ
D255: Colors: | E255: Black Fjord Dusty Fjord Grey Fjord Sand Fjord White Fjord | AP255: X
B257: Stock - Field Tile | E257: 40" x 40" x 6mm | G257: Field | J257: Honed | P257: 21.53 SF/CTN | S257: =IF(Suggested="Yes",AB257,AH257) -> 22.2 | T257: SF | U257: =+Instructions!$B$3 -> D | X257: =+Instructions!$C$22 -> 0 | Y257: =ROUND($AB257*(1-X257)+0.004999,2) -> 22.2 | AB257: 22.2 | AC257: =+X257 -> 0 | AD257: 22.2 | AE257: =(AH257-AD257)/AH257 -> 0 | AG257: 4 | AH257: =SUM(AK257:AM257)+AF257 -> 22.2 | AK257: =ROUND(AD257/(1-VLOOKUP(AG257,Group,2,FALSE)),2) -> 22.2 | AL257: =IF(VLOOKUP(AG257,Group,5,FALSE)="YES",VLOOKUP(ROUND(ROUND(AK257,1)-AK257,2),Round,2,FALSE)+VLOOKUP(AG257,Group,6,FALSE),0) -> 0 | AM257: =IF(VLOOKUP(AG257,Group,7,FALSE)="",0,ROUND(AK257-0.04999,1)-AK257+AN257) -> 0 | AN257: =IF(VLOOKUP(AG257,Group,7,FALSE)="","",VLOOKUP(AG257,Group,7,FALSE)) ->  | AP257: X
B258: Stock - Field Tile | E258: 60" x 40" x 6mm | G258: Field | J258: Honed | P258: 16.15 SF/CTN | S258: =IF(Suggested="Yes",AB258,AH258) -> 23.05 | T258: SF | U258: =+Instructions!$B$3 -> D | X258: =+Instructions!$C$22 -> 0 | Y258: =ROUND($AB258*(1-X258)+0.004999,2) -> 23.05 | AB258: 23.05 | AC258: 0 | AD258: 23.05 | AE258: =(AH258-AD258)/AH258 -> 0 | AG258: 4 | AH258: =SUM(AK258:AM258)+AF258 -> 23.05 | AK258: =ROUND(AD258/(1-VLOOKUP(AG258,Group,2,FALSE)),2) -> 23.05 | AL258: =IF(VLOOKUP(AG258,Group,5,FALSE)="YES",VLOOKUP(ROUND(ROUND(AK258,1)-AK258,2),Round,2,FALSE)+VLOOKUP(AG258,Group,6,FALSE),0) -> 0 | AM258: =IF(VLOOKUP(AG258,Group,7,FALSE)="",0,ROUND(AK258-0.04999,1)-AK258+AN258) -> 0 | AN258: =IF(VLOOKUP(AG258,Group,7,FALSE)="","",VLOOKUP(AG258,Group,7,FALSE)) ->  | AP258: X
B259: Stock - Field Tile | E259: 120" x 40" x 6mm | G259: Field | J259: Honed | P259: 32.29 SF/CTN | S259: =IF(Suggested="Yes",AB259,AH259) -> 23.9 | T259: SF | U259: =+Instructions!$B$3 -> D | X259: =+Instructions!$C$22 -> 0 | Y259: =ROUND($AB259*(1-X259)+0.004999,2) -> 23.9 | AB259: 23.9 | AC259: 0 | AD259: 23.9 | AE259: =(AH259-AD259)/AH259 -> 0 | AG259: 4 | AH259: =SUM(AK259:AM259)+AF259 -> 23.9 | AK259: =ROUND(AD259/(1-VLOOKUP(AG259,Group,2,FALSE)),2) -> 23.9 | AL259: =IF(VLOOKUP(AG259,Group,5,FALSE)="YES",VLOOKUP(ROUND(ROUND(AK259,1)-AK259,2),Round,2,FALSE)+VLOOKUP(AG259,Group,6,FALSE),0) -> 0 | AM259: =IF(VLOOKUP(AG259,Group,7,FALSE)="",0,ROUND(AK259-0.04999,1)-AK259+AN259) -> 0 | AN259: =IF(VLOOKUP(AG259,Group,7,FALSE)="","",VLOOKUP(AG259,Group,7,FALSE)) ->  | AP259: X
C261: HQ.RESIN MAXIMUM | R261: Item # Lookup: | S261: FIMAHQ
D263: Colors: | E263: Cinder Resin Dark Resin Grey Resin White Resin | AP263: X
B265: Stock - Field Tile | E265: 40" x 40" x 6mm | G265: Field | J265: Honed | P265: 21.53 SF/CTN | S265: =IF(Suggested="Yes",AB265,AH265) -> 22.2 | T265: SF | U265: =+Instructions!$B$3 -> D | X265: =+Instructions!$C$22 -> 0 | Y265: =ROUND($AB265*(1-X265)+0.004999,2) -> 22.2 | AB265: 22.2 | AC265: =+X265 -> 0 | AD265: 22.2 | AE265: =(AH265-AD265)/AH265 -> 0 | AG265: 4 | AH265: =SUM(AK265:AM265)+AF265 -> 22.2 | AK265: =ROUND(AD265/(1-VLOOKUP(AG265,Group,2,FALSE)),2) -> 22.2 | AL265: =IF(VLOOKUP(AG265,Group,5,FALSE)="YES",VLOOKUP(ROUND(ROUND(AK265,1)-AK265,2),Round,2,FALSE)+VLOOKUP(AG265,Group,6,FALSE),0) -> 0 | AM265: =IF(VLOOKUP(AG265,Group,7,FALSE)="",0,ROUND(AK265-0.04999,1)-AK265+AN265) -> 0 | AN265: =IF(VLOOKUP(AG265,Group,7,FALSE)="","",VLOOKUP(AG265,Group,7,FALSE)) ->  | AP265: X
B266: Stock - Field Tile | E266: 60" x 40" x 6mm | G266: Field | J266: Honed | P266: 16.15 SF/CTN | S266: =IF(Suggested="Yes",AB266,AH266) -> 23.05 | T266: SF | U266: =+Instructions!$B$3 -> D | X266: =+Instructions!$C$22 -> 0 | Y266: =ROUND($AB266*(1-X266)+0.004999,2) -> 23.05 | AB266: 23.05 | AC266: 0 | AD266: 23.05 | AE266: =(AH266-AD266)/AH266 -> 0 | AG266: 4 | AH266: =SUM(AK266:AM266)+AF266 -> 23.05 | AK266: =ROUND(AD266/(1-VLOOKUP(AG266,Group,2,FALSE)),2) -> 23.05 | AL266: =IF(VLOOKUP(AG266,Group,5,FALSE)="YES",VLOOKUP(ROUND(ROUND(AK266,1)-AK266,2),Round,2,FALSE)+VLOOKUP(AG266,Group,6,FALSE),0) -> 0 | AM266: =IF(VLOOKUP(AG266,Group,7,FALSE)="",0,ROUND(AK266-0.04999,1)-AK266+AN266) -> 0 | AN266: =IF(VLOOKUP(AG266,Group,7,FALSE)="","",VLOOKUP(AG266,Group,7,FALSE)) ->  | AP266: X
B267: Stock - Field Tile | E267: 120" x 40" x 6mm | G267: Field | J267: Honed | P267: 32.29 SF/CTN | S267: =IF(Suggested="Yes",AB267,AH267) -> 23.9 | T267: SF | U267: =+Instructions!$B$3 -> D | X267: =+Instructions!$C$22 -> 0 | Y267: =ROUND($AB267*(1-X267)+0.004999,2) -> 23.9 | AB267: 23.9 | AC267: 0 | AD267: 23.9 | AE267: =(AH267-AD267)/AH267 -> 0 | AG267: 4 | AH267: =SUM(AK267:AM267)+AF267 -> 23.9 | AK267: =ROUND(AD267/(1-VLOOKUP(AG267,Group,2,FALSE)),2) -> 23.9 | AL267: =IF(VLOOKUP(AG267,Group,5,FALSE)="YES",VLOOKUP(ROUND(ROUND(AK267,1)-AK267,2),Round,2,FALSE)+VLOOKUP(AG267,Group,6,FALSE),0) -> 0 | AM267: =IF(VLOOKUP(AG267,Group,7,FALSE)="",0,ROUND(AK267-0.04999,1)-AK267+AN267) -> 0 | AN267: =IF(VLOOKUP(AG267,Group,7,FALSE)="","",VLOOKUP(AG267,Group,7,FALSE)) ->  | AP267: X
C269: IL VENEZIANO MAXIMUM | R269: Item # Lookup: | S269: FIMAIL
D271: Colors: | E271: Seminato Beige Seminato Candido Seminato Nero | AP271: X
B273: Stock - Field Tile | E273: 108" x 48" x 6mm | G273: Field | J273: Honed | P273: 34.88 SF/CTN | S273: =IF(Suggested="Yes",AB273,AH273) -> 33.15 | T273: SF | U273: =+Instructions!$B$3 -> D | X273: =+Instructions!$C$22 -> 0 | Y273: =ROUND($AB273*(1-X273)+0.004999,2) -> 33.15 | AB273: 33.15 | AC273: =+X273 -> 0 | AD273: =+Y273 -> 33.15 | AE273: =(AH273-AD273)/AH273 -> 0 | AG273: 4 | AH273: =SUM(AK273:AM273)+AF273 -> 33.15 | AK273: =ROUND(AD273/(1-VLOOKUP(AG273,Group,2,FALSE)),2) -> 33.15 | AL273: =IF(VLOOKUP(AG273,Group,5,FALSE)="YES",VLOOKUP(ROUND(ROUND(AK273,1)-AK273,2),Round,2,FALSE)+VLOOKUP(AG273,Group,6,FALSE),0) -> 0 | AM273: =IF(VLOOKUP(AG273,Group,7,FALSE)="",0,ROUND(AK273-0.04999,1)-AK273+AN273) -> 0 | AN273: =IF(VLOOKUP(AG273,Group,7,FALSE)="","",VLOOKUP(AG273,Group,7,FALSE)) ->  | AP273: X
B275: Stock - Field Tile | E275: 108" x 48" x 6mm | G275: Field | J275: Polished (Bright) | P275: 34.88 SF/CTN | S275: =IF(Suggested="Yes",AB275,AH275) -> 38.5 | T275: SF | U275: =+Instructions!$B$3 -> D | X275: =+Instructions!$C$22 -> 0 | Y275: =ROUND($AB275*(1-X275)+0.004999,2) -> 38.5 | AB275: 38.5 | AC275: =+X275 -> 0 | AD275: =+Y275 -> 38.5 | AE275: =(AH275-AD275)/AH275 -> 0 | AG275: 4 | AH275: =SUM(AK275:AM275)+AF275 -> 38.5 | AK275: =ROUND(AD275/(1-VLOOKUP(AG275,Group,2,FALSE)),2) -> 38.5 | AL275: =IF(VLOOKUP(AG275,Group,5,FALSE)="YES",VLOOKUP(ROUND(ROUND(AK275,1)-AK275,2),Round,2,FALSE)+VLOOKUP(AG275,Group,6,FALSE),0) -> 0 | AM275: =IF(VLOOKUP(AG275,Group,7,FALSE)="",0,ROUND(AK275-0.04999,1)-AK275+AN275) -> 0 | AN275: =IF(VLOOKUP(AG275,Group,7,FALSE)="","",VLOOKUP(AG275,Group,7,FALSE)) ->  | AP275: X
C277: MARMI MAXIMUM | R277: Item # Lookup: | S277: FIMAMA
D279: Colors: | E279: Alpi Chiaro Venato | H279: Dark Marquina | K279: Pietra Grey | M279: Pure Calacatta | AP279: X
E280: Calacatta Statuario | H280: Invisible | K280: Premium White Sahara Noir | AP280: X
B282: Stock - Field Tile | E282: 48" x 48" x 6mm | G282: Field | J282: Honed | P282: 31.00 SF/CTN | R282: a | S282: =IF(Suggested="Yes",AB282,AH282) -> 29.6 | T282: SF | U282: =+Instructions!$B$3 -> D | X282: =+Instructions!$C$22 -> 0 | Y282: =ROUND($AB282*(1-X282)+0.004999,2) -> 29.6 | AB282: 29.6 | AC282: =+X282 -> 0 | AD282: =+Y282 -> 29.6 | AE282: =(AH282-AD282)/AH282 -> 0 | AG282: 4 | AH282: =SUM(AK282:AM282)+AF282 -> 29.6 | AK282: =ROUND(AD282/(1-VLOOKUP(AG282,Group,2,FALSE)),2) -> 29.6 | AL282: =IF(VLOOKUP(AG282,Group,5,FALSE)="YES",VLOOKUP(ROUND(ROUND(AK282,1)-AK282,2),Round,2,FALSE)+VLOOKUP(AG282,Group,6,FALSE),0) -> 0 | AM282: =IF(VLOOKUP(AG282,Group,7,FALSE)="",0,ROUND(AK282-0.04999,1)-AK282+AN282) -> 0 | AN282: =IF(VLOOKUP(AG282,Group,7,FALSE)="","",VLOOKUP(AG282,Group,7,FALSE)) ->  | AP282: X
B283: Stock - Field Tile | E283: 108" x 48" x 6mm | G283: Field | J283: Honed | P283: 34.88 SF/CTN | R283: a | S283: =IF(Suggested="Yes",AB283,AH283) -> 33.15 | T283: SF | U283: =+Instructions!$B$3 -> D | X283: =+Instructions!$C$22 -> 0 | Y283: =ROUND($AB283*(1-X283)+0.004999,2) -> 33.15 | AB283: 33.15 | AC283: =+X283 -> 0 | AD283: =+Y283 -> 33.15 | AE283: =(AH283-AD283)/AH283 -> 0 | AG283: 4 | AH283: =SUM(AK283:AM283)+AF283 -> 33.15 | AK283: =ROUND(AD283/(1-VLOOKUP(AG283,Group,2,FALSE)),2) -> 33.15 | AL283: =IF(VLOOKUP(AG283,Group,5,FALSE)="YES",VLOOKUP(ROUND(ROUND(AK283,1)-AK283,2),Round,2,FALSE)+VLOOKUP(AG283,Group,6,FALSE),0) -> 0 | AM283: =IF(VLOOKUP(AG283,Group,7,FALSE)="",0,ROUND(AK283-0.04999,1)-AK283+AN283) -> 0 | AN283: =IF(VLOOKUP(AG283,Group,7,FALSE)="","",VLOOKUP(AG283,Group,7,FALSE)) ->  | AP283: X
B285: Stock - Field Tile | E285: 48" x 48" x 6mm | G285: Field | J285: Polished (Bright) | P285: 31.00 SF/CTN | S285: =IF(Suggested="Yes",AB285,AH285) -> 35.55 | T285: SF | U285: =+Instructions!$B$3 -> D | X285: =+Instructions!$C$22 -> 0 | Y285: =ROUND($AB285*(1-X285)+0.004999,2) -> 35.55 | AB285: 35.55 | AC285: =+X285 -> 0 | AD285: =+Y285 -> 35.55 | AE285: =(AH285-AD285)/AH285 -> 0 | AG285: 4 | AH285: =SUM(AK285:AM285)+AF285 -> 35.55 | AK285: =ROUND(AD285/(1-VLOOKUP(AG285,Group,2,FALSE)),2) -> 35.55 | AL285: =IF(VLOOKUP(AG285,Group,5,FALSE)="YES",VLOOKUP(ROUND(ROUND(AK285,1)-AK285,2),Round,2,FALSE)+VLOOKUP(AG285,Group,6,FALSE),0) -> 0 | AM285: =IF(VLOOKUP(AG285,Group,7,FALSE)="",0,ROUND(AK285-0.04999,1)-AK285+AN285) -> 0 | AN285: =IF(VLOOKUP(AG285,Group,7,FALSE)="","",VLOOKUP(AG285,Group,7,FALSE)) ->  | AP285: X
B286: Stock - Field Tile | E286: 108" x 48" x 6mm | G286: Field | J286: Polished (Bright) | P286: 34.88 SF/CTN | S286: =IF(Suggested="Yes",AB286,AH286) -> 38.5 | T286: SF | U286: =+Instructions!$B$3 -> D | X286: =+Instructions!$C$22 -> 0 | Y286: =ROUND($AB286*(1-X286)+0.004999,2) -> 38.5 | AB286: 38.5 | AC286: =+X286 -> 0 | AD286: =+Y286 -> 38.5 | AE286: =(AH286-AD286)/AH286 -> 0 | AG286: 4 | AH286: =SUM(AK286:AM286)+AF286 -> 38.5 | AK286: =ROUND(AD286/(1-VLOOKUP(AG286,Group,2,FALSE)),2) -> 38.5 | AL286: =IF(VLOOKUP(AG286,Group,5,FALSE)="YES",VLOOKUP(ROUND(ROUND(AK286,1)-AK286,2),Round,2,FALSE)+VLOOKUP(AG286,Group,6,FALSE),0) -> 0 | AM286: =IF(VLOOKUP(AG286,Group,7,FALSE)="",0,ROUND(AK286-0.04999,1)-AK286+AN286) -> 0 | AN286: =IF(VLOOKUP(AG286,Group,7,FALSE)="","",VLOOKUP(AG286,Group,7,FALSE)) ->  | AP286: X
D288: Note: | E288: a) Not available in colors Marmi Dark Marquina and Marmi Sahara Noir.
C290: continued on next page
C291: MAXIMUM - Large Panel Porcelain - continued | AP291: X
D293: Large Panel Porcelain will also involve additional packaging & freight charges depending on sizes and quantities. See Page 2 for these additional charges. 120" panels are always subject to additional freight charges based on project quantity.
C295: MARMI MAXIMUM | R295: Item # Lookup: | S295: FIMAMA
D297: Colors: | E297: Dark Marquina Pietra Grey Premium White Sahara Noir | AP297: X
B299: Stock - Field Tile | E299: 48" x 48" x 6mm | G299: Field | J299: Satin | P299: 31.00 SF/CTN | S299: =IF(Suggested="Yes",AB299,AH299) -> 35.55 | T299: SF | U299: =+Instructions!$B$3 -> D | X299: =+Instructions!$C$22 -> 0 | Y299: =ROUND($AB299*(1-X299)+0.004999,2) -> 35.55 | AB299: 35.55 | AC299: =+X299 -> 0 | AD299: =+Y299 -> 35.55 | AE299: =(AH299-AD299)/AH299 -> 0 | AG299: 4 | AH299: =SUM(AK299:AM299)+AF299 -> 35.55 | AK299: =ROUND(AD299/(1-VLOOKUP(AG299,Group,2,FALSE)),2) -> 35.55 | AL299: =IF(VLOOKUP(AG299,Group,5,FALSE)="YES",VLOOKUP(ROUND(ROUND(AK299,1)-AK299,2),Round,2,FALSE)+VLOOKUP(AG299,Group,6,FALSE),0) -> 0 | AM299: =IF(VLOOKUP(AG299,Group,7,FALSE)="",0,ROUND(AK299-0.04999,1)-AK299+AN299) -> 0 | AN299: =IF(VLOOKUP(AG299,Group,7,FALSE)="","",VLOOKUP(AG299,Group,7,FALSE)) ->  | AP299: X
B300: Stock - Field Tile | E300: 108" x 48" x 6mm | G300: Field | J300: Satin | P300: 34.88 SF/CTN | S300: =IF(Suggested="Yes",AB300,AH300) -> 38.5 | T300: SF | U300: =+Instructions!$B$3 -> D | X300: =+Instructions!$C$22 -> 0 | Y300: =ROUND($AB300*(1-X300)+0.004999,2) -> 38.5 | AB300: 38.5 | AC300: =+X300 -> 0 | AD300: =+Y300 -> 38.5 | AE300: =(AH300-AD300)/AH300 -> 0 | AG300: 4 | AH300: =SUM(AK300:AM300)+AF300 -> 38.5 | AK300: =ROUND(AD300/(1-VLOOKUP(AG300,Group,2,FALSE)),2) -> 38.5 | AL300: =IF(VLOOKUP(AG300,Group,5,FALSE)="YES",VLOOKUP(ROUND(ROUND(AK300,1)-AK300,2),Round,2,FALSE)+VLOOKUP(AG300,Group,6,FALSE),0) -> 0 | AM300: =IF(VLOOKUP(AG300,Group,7,FALSE)="",0,ROUND(AK300-0.04999,1)-AK300+AN300) -> 0 | AN300: =IF(VLOOKUP(AG300,Group,7,FALSE)="","",VLOOKUP(AG300,Group,7,FALSE)) ->  | AP300: X
D302: Color: | E302: Calacatta | AP302: X
B304: Stock - Field Tile | E304: 30" x 15" x 6mm | G304: Field | J304: Honed | P304: 18.17 SF/CTN | S304: =IF(Suggested="Yes",AB304,AH304) -> 31.15 | T304: SF | U304: =+Instructions!$B$3 -> D | X304: =+Instructions!$C$22 -> 0 | Y304: =ROUND($AB304*(1-X304)+0.004999,2) -> 31.15 | AB304: 31.15 | AC304: =+X304 -> 0 | AD304: =+Y304 -> 31.15 | AE304: =(AH304-AD304)/AH304 -> 0 | AG304: 4 | AH304: =SUM(AK304:AM304)+AF304 -> 31.15 | AK304: =ROUND(AD304/(1-VLOOKUP(AG304,Group,2,FALSE)),2) -> 31.15 | AL304: =IF(VLOOKUP(AG304,Group,5,FALSE)="YES",VLOOKUP(ROUND(ROUND(AK304,1)-AK304,2),Round,2,FALSE)+VLOOKUP(AG304,Group,6,FALSE),0) -> 0 | AM304: =IF(VLOOKUP(AG304,Group,7,FALSE)="",0,ROUND(AK304-0.04999,1)-AK304+AN304) -> 0 | AN304: =IF(VLOOKUP(AG304,Group,7,FALSE)="","",VLOOKUP(AG304,Group,7,FALSE)) ->  | AP304: X
... 194 more rows

Sheet Websites
A1: Easy Access Website links
A3: ConestogaTile's Website | B3: www.conestogatile.com
A5: Manufacturer's Home Page | B5: http://www.granitifiandre.com/
A8: Product | B8: Direct Website Link
A9: Core Shade | B9: https://www.granitifiandre.com/porcelain-tile/core-shade
A10: Fahrenheit | B10: https://www.granitifiandre.com/porcelain-tile/fahrenheit
A11: French Clay | B11: http://www.granitifiandre.com/porcelain-tile/made-in-usa/french-clay/
A12: LOL
A13: Marble Lab | B13: http://www.granitifiandre.com/porcelain-tile/marble-lab
A14: Maximum | B14: http://www.granitifiandre.com/porcelain-tile/maximum/
A15: May
A16: Royal Marble | B16: https://www.granitifiandre.com/porcelain-tile/royal-marble
A17: Shellstone | B17: http://www.granitifiandre.com/porcelain-tile/made-in-usa/shellstone/
A18: Shen | B18: http://www.granitifiandre.com/porcelain-tile/made-in-usa/shen/
A19: Unicolor | B19: http://www.granitifiandre.com/porcelain-tile/made-in-usa/uni-color/

Sheet Changes
A1: Date
A2: Announced | B2: Series | C2: Description
A4: New Products
A5: 2014-12-24 | B5: Butcher Block | C5: Glazed Porcelain
A6: 2014-12-24 | B6: French Clay | C6: Glazed Porcelain Floor
A7: 2014-12-24 | B7: French Clay | C7: Glazed Ceramic Wall
A8: 2014-12-24 | B8: Link | C8: Unglazed Porcelain
A9: 2014-12-24 | B9: Metropolis | C9: Glazed Porcelain
A10: 2014-12-24 | B10: New Marmi | C10: Unglazed Porcelain
A11: 2014-12-24 | B11: New Stone | C11: Unglazed Porcelain
A12: 2014-12-24 | B12: Nihon | C12: Glazed Porcelain
A13: 2014-12-24 | B13: Origins | C13: Unglazed Porcelain
A14: 2014-12-24 | B14: Shellstone | C14: Glazed Porcelain
A15: 2014-12-24 | B15: Silk Road | C15: Glazed Porcelain
A16: 2014-12-24 | B16: Unicolor | C16: Glazed Porcelain
A17: 2015-06-29 | B17: Harmony | C17: Glazed Porcelain
A18: 2015-06-29 | B18: Maximum | C18: Thin Porcelain
A19: 2016-08-08 | B19: Designer Woods | C19: Glazed Porcelain
A20: 2016-08-08 | B20: G Stone | C20: Unglazed Porcelain
A21: 2016-08-08 | B21: Maze | C21: Glazed Porcelain
A22: 2016-08-08 | B22: New Marmi | C22: 12" x 24" Honed Brick Mosaic and 12" x 12" Honed Stair Tread added to series.
A23: 2016-08-08 | B23: Shellstone | C23: Multicolor 1" x 2" Brick Random Mix Mosaic added to series.
A24: 2016-08-08 | B24: Silk Road | C24: 2" x 2" Mosaic added and is available in color Wild Silk only. 6" x 12" Cove Base added and is available in both Soft Silk and Wild Silk colors.
A25: 2017-05-31 | B25: Approach | C25: Glazed Porcelain
A26: 2017-05-31 | B26: Desire | C26: Glazed Porcelain Floor & Glazed Ceramic Wall
A27: 2017-05-31 | B27: LOL | C27: Glazed Ceramic Wall
A28: 2017-05-31 | B28: Marble Lab | C28: Glazed Porcelain
A29: 2017-05-31 | B29: Maximum | C29: New Marmi colors added and are available in select formats: Marmi Calacatta Elite, Marmi Calacatta Light, Marmi Glam Bronze, Marmi Pietra Grey, Marmi Premium White, Marmi Premium White A, Marmi Premium White B and Marmi Quarzo Greige. Pre-polished finish added to Mega and HG. Resin colors in select formats. Colors Agata Azzurra B, C, E & G and Frapuccino A, B, C & D added to the Precious Stones Colors.
A30: 2017-05-31 | B30: MAY | C30: Glazed Ceramic Wall
A31: 2017-05-31 | B31: Tao | C31: Glazed Porcelain
A32: 2017-05-31 | B32: Westloop | C32: Glazed Porcelain
A33: 2018-06-07 | B33: Dwood 2.0 | C33: Glazed Porcelain
A34: 2018-06-07 | B34: Maximum | C34: Colors Eminent Wood Brown, Eminent Wood Grey and Dark Marquina added.
A35: 2018-06-07 | B35: Tao | C35: 9" x 36" and 18" x 36" Field Tile formats added in both Honed and Semi-Polished finishes. (Replacing the 8" x 48" and 24" x 48" Field Tile formats.) Color Black added and is available in all formats.
A36: 2019-06-27 | B36: Maximum | C36: Colors Eminent Wood Brown, Eminent Wood Grey, Marmi Glam Bronze and Marmi Pietra Grey now available in the Satin finish.
A37: 2019-06-27 | B37: Royal Marble | C37: Glazed Porcelain, available in both 6mm and 8mm thicknesses.
A38: 2020-09-11 | B38: Core Shade | C38: Glazed Porcelain.
A39: 2020-09-11 | B39: Fahrenheit | C39: Glazed Porcelain.
A40: 2020-09-11 | B40: Marble Lab | C40: Colors Atlantic Grey and Nero Marquina added to series.
A41: 2020-09-11 | B41: Maximum | C41: Several Colors and Field Tile formats added.
A42: 2021-08-27 | B42: Maximum | C42: New Marmi color added and is available in select formats: Marmi Marbre De Savoie.
A43: 2021-10-01 | B43: Marble Lab | C43: Colors Arabescato Orobico and Calacatta Bellissimo added to the collection. Matte Field Tile and Stair Tread formats added.
A44: 2021-10-01 | B44: Maximum | C44: Colors Aster Rusty, Il Veneziano Seminato Beige, Il Veneziano Seminato Candido, Il Veneziano Seminato Nero, Marmi Calacatta Dorato, Marmi Deep Emperador, Marmi Ethereal Travertino, Marmi Finest Estremoz, Marmi Pure Calacatta, Pietre Luna Limestone, Pietre Quarzite Vals and Pietre Roccia Di Lucca added to the collection.
A48: Discontinued Products
A49: 2016-08-08 | B49: Butcher Block | C49: 4" x 12" Bullnose format.
A50: 2016-08-08 | B50: Link | C50: Entire Series.
A51: 2016-08-08 | B51: Metropolis | C51: 24" x 24" Field Tile format in all colors.
A52: 2016-08-08 | B52: New Marmi | C52: Colors Dark Gray, Partenon, Taupe Gray and Toros Black in all formats.
A53: 2016-08-08 | B53: New Stone | C53: Color Carbone in all formats, 6" x 24" Field Tile and 6" x 12" Bullnose formats in all colors.
A54: 2016-08-08 | B54: Nihon | C54: 2" x 24" Field Tile format in all colors.
A55: 2016-08-08 | B55: Origins | C55: 12" x 12" Polished Field Tile format in all colors.
A56: 2016-08-08 | B56: Silk Road | C56: Colors Natural Silk and Raw Silk in all formats.
A57: 2017-05-31 | B57: Maximum | C57: Color Marmi Michelangelo Statuario in all formats. Colors Natura Bistro, Natura Castagno, Natura Cenere, Natura Frassino and Natura Magnolia in all formats.
A58: 2017-11-17 | B58: Nihon | C58: Color Goma in all formats. 24" x 24" Field Tile format in all colors.
A59: 2017-12-15 | B59: Butcher Block | C59: Entire Series.
A60: 2017-12-15 | B60: French Clay | C60: 24" x 24" Brilliant finish Field Tile format in all colors.
A61: 2017-12-15 | B61: Metropolis | C61: Color Noir in all formats.
A62: 2017-12-15 | B62: Nihon | C62: Color Tatami in all formats.
A63: 2017-12-15 | B63: Origins | C63: Entire Series.
A64: 2017-12-15 | B64: Shellstone | C64: 18" x 36" Field Tile format in all colors.
A65: 2017-12-15 | B65: Silk Road | C65: 24" x 24" Field Tile format in all colors.
A66: 2018-03-29 | B66: Nihon | C66: 2" x 2" and Bamboo Mosaic in all colors and the Multicolor 1" x 2" Brick Random Mix Mosaic.
A67: 2018-06-07 | B67: Approach | C67: Colors Light Gray and Sand in all formats.
A68: 2018-06-07 | B68: Designer Woods | C68: Entire Series.
A69: 2018-06-07 | B69: Maximum | C69: Colors Aster Uranus and Marmi Quarzo Greige in all formats. Colors Marmi Premium White/A Honed and Marmi Premium White/B Honed in the 120" x 60" x 6mm format. Color Marmi Royal Marfil in the 40" x 40" x 6mm, 60" x 40" x 6mm & 120" x 40" x 6mm Field Tile formats in both the Honed and Polished finishes.
A70: 2018-06-07 | B70: Tao | C70: 8" x 48" and 24" x 48" Field Tile formats in all colors & finishes. (Replaced with the 9" x 36" and 18" x 36" Field Tile formats.) Colors Dark Grey and Taupe in all formats and finishes. 12" x 24" Multisize Honed Mosaic in all colors.
A71: 2019-03-08 | B71: Maze | C71: Entire Series.
A72: 2019-03-08 | B72: Nihon | C72: Entire Series.
A73: 2019-06-27 | B73: Maximum | C73: Colors HQ.Resin Cinder Resin, HQ.Resin Dark Resin,HQ.Resin Grey Resin & HQ.Resin White Resin in the Pre-polished surface only in all formats.
A74: 2019-06-27 | B74: New Stone | C74: Entire Series.
A75: 2019-06-27 | B75: Shellstone | C75: All colors and formats in the Flamed surface only.
A76: 2020-06-12 | B76: Approach | C76: Entire Series. | D76: Discontinued by Fiandre
A77: 2020-06-12 | B77: DWood 2.0 | C77: Entire Series. | D77: Discontinued by Fiandre
A78: 2020-06-12 | B78: Silk Road | C78: Entire Series. | D78: Discontinued by Fiandre
A79: 2020-06-12 | B79: Tao | C79: Entire Series. | D79: Discontinued by Fiandre
A80: 2020-06-12 | B80: West Loop | C80: Entire Series. | D80: Discontinued by Fiandre
A81: 2020-09-11 | B81: Desire | C81: 8" x 48" and 12" x 48" Field Tile formats only in all colors & finishes. | D81: Discontinued by Fiandre
A82: 2020-09-11 | B82: G Stone | C82: Entire Series. | D82: Discontinued by Fiandre
A83: 2020-09-11 | B83: Maximum Aster | C83: 30" x 15" x 6mm, 30" x 30" x 6mm, 60" x 30" x 6mm, 60" x 60" x 6mm & 120" x 60" x 6mm Field Tile formats in all Aster colors; Aster Mercury, Aster Moon & Aster Venus. | D83: Discontinued by Fiandre
A84: 2020-09-11 | B84: Maximum Marmi | C84: Color Marmi Nero Supremo in all fomats. | D84: Discontinued by Fiandre
A85: 2021-08-27 | B85: Desire | C85: All Glazed Ceramic Wall Tile formats; 8" x 8", 4" x 12" and 8" x 24" Field Tile and all Deco's in these sizes. | D85: Discontinued by Fiandre
A86: 2021-09-08 | B86: Desire | C86: Entire Series. (All remaining Glazed Porcelain Floor formats.) | D86: Discontinued by CCTD
A87: 2021-10-01 | B87: Maximum | C87: Colors Marmi Atlantic Grey, Marmi Calacatta Elite, Marmi Grey Beauty, Marmi Soft Onyx and Rock Salt Pink Rock Salt in all fomats. All Precious Stones colors and formats. 40" x 40" x 6mm and 100" x 40" x 6mm formats in colors Marmi Calacatta Bellissimo, Marmi Pietra Grey and Marmi Premium White in both Honed and Polished formats. | D87: Discontinued by Fiandre
A88: 2021-10-01 | B88: Marble Lab | C88: Colors Bianco Striato and Nero Portoro only in all formats. | D88: Discontinued by Fiandre
A89: 2021-10-01 | B89: Royal Marble | C89: 30" x 60" x 6mm, 60" x 60" x 6mm and 60" x 120" x 6mm Honed Finish only in all colors. | D89: Discontinued by Fiandre
A90: 2022-04-11 | B90: Marble Lab | C90: Colors Atlantic Grey, Calacatta Elite, Noble Ecru and Quarzo Greige only in all formats. | D90: Discontinued by Fiandre
A91: (3/16/2022 | B91: Desire | C91: Entire Series. | D91: Discontinued by Fiandre)
A92: 2022-07-25 | B92: French Clay | C92: 24" x 24" Field Tile format only in all colors. | D92: Discontinued by Fiandre
A93: 2022-07-25 | B93: Royal Marble | C93: 24" x 24" Field Tile format only in all colors & finishes. | D93: Discontinued by Fiandre
A94: 2022-08-24 | B94: French Clay | C94: 12" x 24" Brilliant finish Field Tile, 3" x 6" Mosaic Brilliant finish & 3" x 24" Bullnose Brilliant finish formats only in all colors. | D94: Discontinued by Fiandre
A95: 2022-08-24 | B95: Metropolis | C95: Entire Series. | D95: Discontinued by Fiandre
A96: 2022-08-24 | B96: New Marmi | C96: Entire Series. | D96: Discontinued by Fiandre
A97: 2022-08-24 | B97: Shen | C97: 12" x 48" Field Tile format only in all colors. | D97: Discontinued by Fiandre
A98: 2022-08-24 | B98: Unicolor | C98: 12" x 12" Field Tile format only in all colors. | D98: Discontinued by Fiandre
A99: 2022-08-24 | B99: Maximum (Aster) | C99: Color Aster Rusty only in all formats. | D99: Discontinued by Fiandre
A100: 2022-08-24 | B100: Maximum (Eminent Wood) | C100: All colors, formats and finishes. | D100: Discontinued by Fiandre
A101: 2022-08-24 | B101: Maximum (Marmi) | C101: Colors Azul Macaubus, Finest Estremoz and Royal Marfil only in all formats and finishes. | D101: Discontinued by Fiandre
A102: 2022-08-24 | B102: Maximum (Rock Salt) | C102: All colors, formats and finishes. | D102: Discontinued by Fiandre
A103: 2023-01-17 | B103: French Clay | C103: 4" x 12" Wall Field Tile and 4" x 12" Wall Bullnose formats only in all colors. | D103: Discontinued by Fiandre
A104: 2023-01-17 | B104: Unicolor | C104: Entire Series. | D104: Discontinued by Fiandre
A108: Changes:
A109: 2016-04-08 | B109: Harmony | C109: Name of series has changed to Shen.
A110: 2017-06-08 | B110: Nihon | C110: Packaging will be changing for the 4" x 24" Field Tile format from 9.09 SF/CTN to 11.68 SF/CTN as inventory with old packaging is depleted.
